Workbook

Sheet Summary
B1: Security Guarding service
B2: Posting List Quantities
C3: Armed Grade C Security Officer | D3: Grade C Security Officer
C4: Monday to Friday 06H00 to 18H00 | D4: Monday to Friday 06H00 to 18H00
A5: ITEM | B5: REGION | C5: Monday to Sunday 18H00 to 06H00 | D5: Monday to Sunday 18H00 to 06H00 | E5: Total Manpower
A6: 1 | B6: KwaZulu Natal | C6: 218 | D6: 451 | E6: =SUM(C6:D6) -> 669
A7: 2 | B7: Eastern Cape | C7: 245 | D7: 493 | E7: 738
A8: 3 | B8: Gauteng | C8: 182 | D8: 511 | E8: 693
A9: 4 | B9: Western Cape | C9: 173 | D9: 271 | E9: 444
A10: 5 | B10: Limpopo | C10: 97 | D10: 245 | E10: 342
A11: 6 | B11: North West | C11: 108 | D11: 189 | E11: 297
A12: 7 | B12: Free State | C12: 169 | D12: 285 | E12: 454
A13: 8 | B13: Northern Cape | C13: 39 | D13: 196 | E13: 235
A14: 9 | B14: Mpumalanga | C14: 108 | D14: 217 | E14: 325
C15: =SUM(C6:C14) -> 1339 | D15: =SUM(D6:D14) -> 2858 | E15: =SUM(E6:E14) -> 4197
C18: Armed Grade C Security Officer | D18: Grade C Security Officer
A19: ITEM | B19: REGION | C19: Saturday and Sunday 06H00 to 18H00 | D19: Saturday and Sunday 06H00 to 18H00 | E19: Total Manpower
A20: 1 | B20: KwaZulu Natal | C20: =C35-C6 -> 98 | D20: 220 | E20: =SUM(C20:D20) -> 318
A21: 2 | B21: Eastern Cape | C21: 120 | D21: 251 | E21: 371
A22: 3 | B22: Gauteng | C22: 91 | D22: 249 | E22: 340
A23: 4 | B23: Western Cape | C23: 73 | D23: 83 | E23: 156
A24: 5 | B24: Limpopo | C24: 48 | D24: 92 | E24: 140
A25: 6 | B25: North West | C25: 54 | D25: 78 | E25: 132
A26: 7 | B26: Free State | C26: 82 | D26: 101 | E26: 183
A27: 8 | B27: Northern Cape | C27: 20 | D27: 67 | E27: 87
A28: 9 | B28: Mpumalanga | C28: 51 | D28: 78 | E28: 129
C29: =SUM(C20:C28) -> 637 | D29: =SUM(D20:D28) -> 1219 | E29: =SUM(E20:E28) -> 1856
C31: Armed Grade C Security Officer | D31: Grade C Security Officer
C32: Monday to Friday 06H00 to 18H00 | D32: Monday to Friday 06H00 to 18H00
C33: Saturday and Sunday 06H00 to 18H00 | D33: Saturday and Sunday 06H00 to 18H00
A34: ITEM | B34: REGION | C34: Monday to Sunday 18H00 to 06H00 | D34: Monday to Sunday 18H00 to 06H00 | E34: Total Manpower
A35: 1 | B35: KwaZulu Natal | C35: 316 | D35: 671 | E35: =SUM(C35:D35) -> 987
A36: 2 | B36: Eastern Cape | C36: 365 | D36: 744 | E36: 1109
A37: 3 | B37: Gauteng | C37: 273 | D37: 760 | E37: 1033
A38: 4 | B38: Western Cape | C38: 246 | D38: 354 | E38: 600
A39: 5 | B39: Limpopo | C39: 145 | D39: 337 | E39: 482
A40: 6 | B40: North West | C40: 162 | D40: 267 | E40: 429
A41: 7 | B41: Free State | C41: 251 | D41: 386 | E41: 637
A42: 8 | B42: Northern Cape | C42: 59 | D42: 263 | E42: 322
A43: 9 | B43: Mpumalanga | C43: 159 | D43: 295 | E43: 454
C44: =SUM(C35:C43) -> 1976 | D44: =SUM(D35:D43) -> 4077 | E44: =SUM(E35:E43) -> 6053

Sheet KwaZulu Natal
B1: RFB 2021 12 KZN*
A2: Item no | B2: KWAZULU NATAL | C2: Grade B | D2: Grade C Armed | E2: Grade C Unarmed | F2: Control Room CCTV | G2: Hand Held Metaldetector(s)
A4: 1.1.1 | B4: LABOUR COURT: DURBAN
B5: 06:00 TO 18:00 MONDAY TO FRIDAY
A6: Area 1 | B6: Security Officer | D6: 1 | E6: 2
B7: 06:00 TO 18:00 SATURDAY AND SUNDAY/PUBLIC HOLIDAY
B8: Security Officer | D8: 0 | E8: 0
B9: 18:00 TO 06:00 MONDAY TO SUNDAY
B10: Security Officer | D10: 1 | E10: 1
B11: Handheld Metal Detector(s) | G11: 3
A13: 1.1.2 | B13: PIETERMARITZBURG FAMILY COURT(ANNEXE)
B14: 06:00 TO 18:00 MONDAY TO FRIDAY
A15: Area 1 | B15: Security Officer | D15: 1 | E15: 5 | H15: 3
B16: 06:00 TO 18:00 SATURDAY AND SUNDAY/PUBLIC HOLIDAY
B17: Security Officer | D17: 0 | E17: 0
B18: 18:00 TO 06:00 MONDAY TO SUNDAY
B19: Security Officer | D19: 1 | E19: 1
B20: Handheld Metal Detector(s) | G20: 5
A22: 1.1.3 | B22: NEW HANOVER
B23: 06:00 TO 18:00 MONDAY TO FRIDAY
A24: Area 3 | B24: Security Officer | D24: 1 | E24: 3
B25: 06:00 TO 18:00 SATURDAY AND SUNDAY/PUBLIC HOLIDAY
B26: Security Officer | D26: 0 | E26: 0
B27: 18:00 TO 06:00 MONDAY TO SUNDAY
B28: Security Officer | D28: 1 | E28: 1
B29: Handheld Metal Detector(s) | G29: 3
A40: 1.1.4 | B40: RICHMOND
B41: 06:00 TO 18:00 MONDAY TO FRIDAY
A42: Area 3 | B42: Security Officer | D42: 1 | E42: 3 | H42: 1
B43: 06:00 TO 18:00 SATURDAY AND SUNDAY/PUBLIC HOLIDAY
B44: Security Officer | D44: 0 | E44: 0
B45: 18:00 TO 06:00 MONDAY TO SUNDAY
B46: Security Officer | D46: 1 | E46: 1
B47: Handheld Metal Detector(s) | G47: 3
A49: 1.1.5 | B49: UMBUMBULU
B50: 06:00 TO 18:00 MONDAY TO FRIDAY
A51: Area 3 | B51: Security Officer | D51: 1 | E51: 3 | H51: 1
B52: 06:00 TO 18:00 SATURDAY AND SUNDAY/PUBLIC HOLIDAY
B53: Security Officer | D53: 0 | E53: 0
B54: 18:00 TO 06:00 MONDAY TO SUNDAY
B55: Security Officer | D55: 1 | E55: 1 | H55: 1
B56: Handheld Metal Detector(s) | G56: 3
A58: 1.1.6 | B58: HOWICK
B59: 06:00 TO 18:00 MONDAY TO FRIDAY
A60: Area 3 | B60: Security Officer | D60: 1 | E60: 3
B61: 06:00 TO 18:00 SATURDAY AND SUNDAY/PUBLIC HOLIDAY
B62: Security Officer | D62: 0 | E62: 0
B63: 18:00 TO 06:00 MONDAY TO SUNDAY
B64: Security Officer | D64: 1 | E64: 1
B65: Handheld Metal Detector(s) | G65: 3
A67: 1.1.7 | B67: NDWEDWE
B68: 06:00 TO 18:00 MONDAY TO FRIDAY
A69: Area 3 | B69: Security Officer | D69: 1 | E69: 3
B70: 06:00 TO 18:00 SATURDAY AND SUNDAY/PUBLIC HOLIDAY
B71: Security Officer | D71: 0 | E71: 0
B72: 18:00 TO 06:00 MONDAY TO SUNDAY
B73: Security Officer | D73: 1 | E73: 1
B74: Handheld Metal Detector(s) | G74: 3
A76: 1.1.8 | B76: PORT SHEPSTONE
B77: 06:00 TO 18:00 MONDAY TO FRIDAY
A78: Area 3 | B78: Security Officer | D78: 1 | E78: 4 | H78: 1
B79: 06:00 TO 18:00 SATURDAY AND SUNDAY/PUBLIC HOLIDAY
B80: Security Officer | D80: 0 | E80: 0
B81: 18:00 TO 06:00 MONDAY TO SUNDAY
B82: Security Officer | D82: 1 | E82: 1 | H82: 1
B83: Handheld Metal Detector(s) | G83: 3
A85: 1.1.9 | B85: KOKSTAD
B86: 06:00 TO 18:00 MONDAY TO FRIDAY
A87: Area 3 | B87: Security Officer | D87: 1 | E87: 3 | H87: 1
B88: 06:00 TO 18:00 SATURDAY AND SUNDAY/PUBLIC HOLIDAY
B89: Security Officer | D89: 0 | E89: 0
B90: 18:00 TO 06:00 MONDAY TO SUNDAY
B91: Security Officer | D91: 1 | E91: 1
B92: Handheld Metal Detector(s) | G92: 3
A94: 1.1.10 | B94: CAMPERDOWN
B95: 06:00 TO 18:00 MONDAY TO FRIDAY
A96: Area 1 | B96: Security Officer | D96: 1 | E96: 3 | H96: 1
B97: 06:00 TO 18:00 SATURDAY AND SUNDAY/PUBLIC HOLIDAY
B98: Security Officer | D98: 0 | E98: 0
B99: 18:00 TO 06:00 MONDAY TO SUNDAY
B100: Security Officer | D100: 1 | E100: 1
B101: Handheld Metal Detector(s) | G101: 3
A103: 1.1.11 | B103: PINETOWN
B104: 06:00 TO 18:00 MONDAY TO FRIDAY
A105: Area 1 | B105: Security Officer | D105: 1 | E105: 6 | H105: 1
B106: 06:00 TO 18:00 SATURDAY AND SUNDAY/PUBLIC HOLIDAY
B107: Security Officer | D107: 0 | E107: 0
B108: 18:00 TO 06:00 MONDAY TO SUNDAY
B109: Security Officer | D109: 1 | E109: 2
B110: Handheld Metal Detector(s) | G110: 3
A112: 1.1.12 | B112: NTUZUMA MAGISTRATE COURT - BRIDGE CITY
B113: 06:00 TO 18:00 MONDAY TO FRIDAY
A114: Area 1 | B114: Security Officer | D114: 2 | E114: 7 | H114: 1
B115: 06:00 TO 18:00 SATURDAY AND SUNDAY/PUBLIC HOLIDAY
B116: Security Officer | D116: 0 | E116: 0
B117: 18:00 TO 06:00 MONDAY TO SUNDAY
B118: Security Officer | D118: 2 | E118: 0 | H118: 1
B119: Handheld Metal Detector(s) | G119: 5
A121: 1.1.13 | B121: VULAMEHLO: PERIODICAL , SAWOTI
B122: 06:00 TO 18:00 MONDAY TO FRIDAY
A123: Area 1 | B123: Security Officer | D123: 1 | E123: 2
B124: 06:00 TO 18:00 SATURDAY AND SUNDAY/PUBLIC HOLIDAY
B125: Security Officer | D125: 0 | E125: 0
B126: 18:00 TO 06:00 MONDAY TO SUNDAY
B127: Security Officer | D127: 0 | E127: 1
B128: Handheld Metal Detector(s) | G128: 2
A130: 1.1.14 | B130: PIETERMARITZBURG MAGISTRATE
B131: 06:00 TO 18:00 MONDAY TO FRIDAY
A132: Area 1 | B132: Security Officer | D132: 1 | E132: 4 | H132: 2
B133: 06:00 TO 18:00 SATURDAY AND SUNDAY/PUBLIC HOLIDAY
B134: Security Officer | D134: 0 | E134: 0
B135: 18:00 TO 06:00 MONDAY TO SUNDAY
B136: Security Officer | D136: 1 | E136: 1
B137: Handheld Metal Detector(s) | G137: 3
A139: 1.1.15 | B139: VERULAM
B140: 06:00 TO 18:00 MONDAY TO FRIDAY
A141: Area 1 | B141: Security Officer | D141: 1 | E141: 5 | H141: 1
B142: 06:00 TO 18:00 SATURDAY AND SUNDAY/PUBLIC HOLIDAY
B143: Security Officer | D143: 0 | E143: 0
B144: 18:00 TO 06:00 MONDAY TO SUNDAY
B145: Security Officer | D145: 1 | E145: 1
B146: Handheld Metal Detector(s) | G146: 3
A148: 1.1.16 | B148: MPUMALANGA
B149: 06:00 TO 18:00 MONDAY TO FRIDAY
A150: Area 1 | B150: Security Officer | D150: 1 | E150: 3
B151: 06:00 TO 18:00 SATURDAY AND SUNDAY/PUBLIC HOLIDAY
B152: Security Officer | D152: 0 | E152: 0
B153: 18:00 TO 06:00 MONDAY TO SUNDAY
B154: Security Officer | D154: 1 | E154: 1
B155: Handheld Metal Detector(s) | G155: 3
A157: 1.1.17 | B157: IZINGOLWENI
B158: 06:00 TO 18:00 MONDAY TO FRIDAY
A159: Area 3 | B159: Security Officer | D159: 1 | E159: 3
B160: 06:00 TO 18:00 SATURDAY AND SUNDAY/PUBLIC HOLIDAY
B161: Security Officer | D161: 0 | E161: 0
B162: 18:00 TO 06:00 MONDAY TO SUNDAY
B163: Security Officer | D163: 1 | E163: 1
B164: Handheld Metal Detector(s) | G164: 3
A166: 1.1.18 | B166: IXOPO
B167: 06:00 TO 18:00 MONDAY TO FRIDAY
A168: Area 3 | B168: Security Officer | D168: 1 | E168: 3
B169: 06:00 TO 18:00 SATURDAY AND SUNDAY/PUBLIC HOLIDAY
B170: Security Officer | D170: 0 | E170: 0
B171: 18:00 TO 06:00 MONDAY TO SUNDAY
B172: Security Officer | D172: 1 | E172: 1
B173: Handheld Metal Detector(s) | G173: 3
A175: 1.1.19 | B175: CHATSWORTH
B176: 06:00 TO 18:00 MONDAY TO FRIDAY
A177: Area 1 | B177: Security Officer | D177: 1 | E177: 3 | H177: 2
B178: 06:00 TO 18:00 SATURDAY AND SUNDAY/PUBLIC HOLIDAY
B179: Security Officer | D179: 0 | E179: 0
B180: 18:00 TO 06:00 MONDAY TO SUNDAY
B181: Security Officer | D181: 1 | E181: 1
B182: Handheld Metal Detector(s) | G182: 3
A184: 1.1.20 | B184: STANGER (KWA DUKUZA)
B185: 06:00 TO 18:00 MONDAY TO FRIDAY
A186: Area 3 | B186: Security Officer | D186: 1 | E186: 4 | H186: 2
B187: 06:00 TO 18:00 SATURDAY AND SUNDAY/PUBLIC HOLIDAY
B188: Security Officer | D188: 0 | E188: 0
B189: 18:00 TO 06:00 MONDAY TO SUNDAY
B190: Security Officer | D190: 1 | E190: 1
B191: Handheld Metal Detector(s) | G191: 3
A193: 1.1.21 | B193: IMPENDLE
B194: 06:00 TO 18:00 MONDAY TO FRIDAY
A195: Area 3 | B195: Security Officer | D195: 1 | E195: 3
B196: 06:00 TO 18:00 SATURDAY AND SUNDAY/PUBLIC HOLIDAY
B197: Security Officer | D197: 0 | E197: 0
B198: 18:00 TO 06:00 MONDAY TO SUNDAY
B199: Security Officer | D199: 1 | E199: 1
B200: Handheld Metal Detector(s) | G200: 3
A202: 1.1.22 | B202: MOOIRIVIER
B203: 06:00 TO 18:00 MONDAY TO FRIDAY
A204: Area 3 | B204: Security Officer | D204: 1 | E204: 3
B205: 06:00 TO 18:00 SATURDAY AND SUNDAY/PUBLIC HOLIDAY
B206: Security Officer | D206: 0 | E206: 0
B207: 18:00 TO 06:00 MONDAY TO SUNDAY
B208: Security Officer | D208: 1 | E208: 1
B209: Handheld Metal Detector(s) | G209: 3
A211: 1.1.23 | B211: REGIONAL OFFICE KZN (Shared Court Service)
B212: 06:00 TO 18:00 MONDAY TO FRIDAY
A213: Area 1 | B213: Security Officer | D213: 1 | E213: 7 | H213: 2
B214: 06:00 TO 18:00 SATURDAY AND SUNDAY/PUBLIC HOLIDAY
B215: Security Officer | D215: 1 | E215: 0
B216: 18:00 TO 06:00 MONDAY TO SUNDAY
B217: Security Officer | D217: 1 | E217: 1
B218: Handheld Metal Detector(s) | G218: 5
A229: 1.1.24 | B229: SCOTTBURGH
B230: 06:00 TO 18:00 MONDAY TO FRIDAY
A231: Area 3 | B231: Security Officer | D231: 1 | E231: 3 | H231: 2
B232: 06:00 TO 18:00 SATURDAY AND SUNDAY/PUBLIC HOLIDAY
B233: Security Officer | D233: 0 | E233: 0
B234: 18:00 TO 06:00 MONDAY TO SUNDAY
B235: Security Officer | D235: 1 | E235: 1
B236: Handheld Metal Detector(s) | G236: 3
A238: 1.1.25 | B238: EMLAZI
B239: 06:00 TO 18:00 MONDAY TO FRIDAY
A240: Area 3 | B240: Security Officer | D240: 1 | E240: 5 | H240: 2
B241: 06:00 TO 18:00 SATURDAY AND SUNDAY/PUBLIC HOLIDAY
B242: Security Officer | D242: 0 | E242: 0
B243: 18:00 TO 06:00 MONDAY TO SUNDAY
... 724 more rows

Sheet Eastern Cape
B1: RFB2021 __ EC
A2: Item no | B2: EASTERN CAPE | C2: Grade B | D2: Grade C Armed | E2: Grade C Unarmed | F2: Control Room CCTV | G2: Hand Held Metaldetector(s)
A3: 2.1.1 | B3: WHITTLESEA
B4: 06:00 TO 18:00 MONDAY TO FRIDAY
A5: Area 3 | B5: Security Officer | D5: 1 | E5: 3 | H5: 1
B6: 06:00 TO 18:00 SATURDAY AND SUNDAY/PUBLIC HOLIDAY
B7: Security Officer | D7: 0 | E7: 0
B8: 18:00 TO 06:00 MONDAY TO SUNDAY
B9: Security Officer | D9: 1 | E9: 1
B10: Handheld Metal Detector(s) | G10: 4
A12: 2.1.2 | B12: QUEENSTOWN
B13: 06:00 TO 18:00 MONDAY TO FRIDAY
A14: Area 3 | B14: Security Officer | D14: 1 | E14: 6 | H14: 2
B15: 06:00 TO 18:00 SATURDAY AND SUNDAY/PUBLIC HOLIDAY
B16: Security Officer | D16: 0 | E16: 0
B17: 18:00 TO 06:00 MONDAY TO SUNDAY
B18: Security Officer | D18: 1 | E18: 1
B19: Handheld Metal Detector(s) | G19: 4
A21: 2.1.3 | B21: STUTTERHEIM
B22: 06:00 TO 18:00 MONDAY TO FRIDAY
A23: Area 3 | B23: Security Officer | D23: 1 | E23: 3
B24: 06:00 TO 18:00 SATURDAY AND SUNDAY/PUBLIC HOLIDAY
B25: Security Officer | D25: 0 | E25: 0
B26: 18:00 TO 06:00 MONDAY TO SUNDAY
B27: Security Officer | D27: 1 | E27: 1
B28: Handheld Metal Detector(s) | G28: 3
A30: 2.1.4 | B30: JAMESTOWN
B31: 06:00 TO 18:00 MONDAY TO FRIDAY
A32: Area 3 | B32: Security Officer | D32: 1 | E32: 2
B33: 06:00 TO 18:00 SATURDAY AND SUNDAY/PUBLIC HOLIDAY
B34: Security Officer | D34: 0 | E34: 0
B35: 18:00 TO 06:00 MONDAY TO SUNDAY
B36: Security Officer | D36: 1 | E36: 1
B37: Handheld Metal Detector(s) | G37: 3
A39: 2.1.5 | B39: NERINA PLACE OF SAFETY
B40: 06:00 TO 18:00 MONDAY TO FRIDAY
A41: Area 1 | B41: Security Officer | D41: 1 | E41: 6 | H41: 4
B42: 06:00 TO 18:00 SATURDAY AND SUNDAY/PUBLIC HOLIDAY
B43: Security Officer | D43: 0 | E43: 0
B44: 18:00 TO 06:00 MONDAY TO SUNDAY
B45: Security Officer | D45: 1 | E45: 1
B46: Handheld Metal Detector(s) | G46: 5
A48: 2.1.6 | B48: VENTERSTAD
B49: 06:00 TO 18:00 MONDAY TO FRIDAY
A50: Area 3 | B50: Security Officer | D50: 1 | E50: 2
B51: 06:00 TO 18:00 SATURDAY AND SUNDAY/PUBLIC HOLIDAY
B52: Security Officer | D52: 0 | E52: 0
B53: 18:00 TO 06:00 MONDAY TO SUNDAY
B54: Security Officer | D54: 1 | E54: 1
B55: Handheld Metal Detector(s) | G55: 3
A57: 2.1.7 | B57: EZIBELENI
B58: 06:00 TO 18:00 MONDAY TO FRIDAY
A59: Area 3 | B59: Security Officer | D59: 1 | E59: 2
B60: 06:00 TO 18:00 SATURDAY AND SUNDAY/PUBLIC HOLIDAY
B61: Security Officer | D61: 0 | E61: 0
B62: 18:00 TO 06:00 MONDAY TO SUNDAY
B63: Security Officer | D63: 1 | E63: 1
B64: Handheld Metal Detector(s) | G64: 3
A66: 2.1.8 | B66: NTABETHEMBA
B67: 06:00 TO 18:00 MONDAY TO FRIDAY
A68: Area 3 | B68: Security Officer | D68: 1 | E68: 2
B69: 06:00 TO 18:00 SATURDAY AND SUNDAY/PUBLIC HOLIDAY
B70: Security Officer | D70: 0 | E70: 0
B71: 18:00 TO 06:00 MONDAY TO SUNDAY
B72: Security Officer | D72: 1 | E72: 1
B73: Handheld Metal Detector(s) | G73: 3
A75: 2.1.9 | B75: CATHCART
B76: 06:00 TO 18:00 MONDAY TO FRIDAY
A77: Area 3 | B77: Security Officer | D77: 1 | E77: 2
B78: 06:00 TO 18:00 SATURDAY AND SUNDAY/PUBLIC HOLIDAY
B79: Security Officer | D79: 0 | E79: 0
B80: 18:00 TO 06:00 MONDAY TO SUNDAY
B81: Security Officer | D81: 1 | E81: 1
B82: Handheld Metal Detector(s) | G82: 3
A84: 2.1.10 | B84: MOLTENO
B85: 06:00 TO 18:00 MONDAY TO FRIDAY
A86: Area 3 | B86: Security Officer | D86: 1 | E86: 2
B87: 06:00 TO 18:00 SATURDAY AND SUNDAY/PUBLIC HOLIDAY
B88: Security Officer | D88: 0 | E88: 0
B89: 18:00 TO 06:00 MONDAY TO SUNDAY
B90: Security Officer | D90: 1 | E90: 1
B91: Handheld Metal Detector(s) | G91: 3
A93: 2.1.11 | B93: TARKASTAD
B94: 06:00 TO 18:00 MONDAY TO FRIDAY
A95: Area 3 | B95: Security Officer | D95: 1 | E95: 2 | H95: 1
B96: 06:00 TO 18:00 SATURDAY AND SUNDAY/PUBLIC HOLIDAY
B97: Security Officer | D97: 0 | E97: 0
B98: 18:00 TO 06:00 MONDAY TO SUNDAY
B99: Security Officer | D99: 1 | E99: 1
B100: Handheld Metal Detector(s) | G100: 3
A102: 2.1.12 | B102: BURGERSDORP
B103: 06:00 TO 18:00 MONDAY TO FRIDAY
A104: Area 3 | B104: Security Officer | D104: 1 | E104: 2
B105: 06:00 TO 18:00 SATURDAY AND SUNDAY/PUBLIC HOLIDAY
B106: Security Officer | D106: 0 | E106: 0
B107: 18:00 TO 06:00 MONDAY TO SUNDAY
B108: Security Officer | D108: 1 | E108: 1
B109: Handheld Metal Detector(s) | G109: 3
A111: 2.1.13 | B111: LADY GREY
B112: 06:00 TO 18:00 MONDAY TO FRIDAY
A113: Area 3 | B113: Security Officer | D113: 1 | E113: 2
B114: 06:00 TO 18:00 SATURDAY AND SUNDAY/PUBLIC HOLIDAY
B115: Security Officer | D115: 0 | E115: 0
B116: 18:00 TO 06:00 MONDAY TO SUNDAY
B117: Security Officer | D117: 1 | E117: 1
B118: Handheld Metal Detector(s) | G118: 3
A120: 2.1.14 | B120: STEYNSBURG
B121: 06:00 TO 18:00 MONDAY TO FRIDAY
A122: Area 3 | B122: Security Officer | D122: 1 | E122: 2
B123: 06:00 TO 18:00 SATURDAY AND SUNDAY/PUBLIC HOLIDAY
B124: Security Officer | D124: 0 | E124: 0
B125: 18:00 TO 06:00 MONDAY TO SUNDAY
B126: Security Officer | D126: 1 | E126: 1
B127: Handheld Metal Detector(s) | G127: 3
A129: 2.1.15 | B129: HOFMEYER
B130: 06:00 TO 18:00 MONDAY TO FRIDAY
A131: Area 3 | B131: Security Officer | D131: 1 | E131: 2
B132: 06:00 TO 18:00 SATURDAY AND SUNDAY/PUBLIC HOLIDAY
B133: Security Officer | D133: 0 | E133: 0
B134: 18:00 TO 06:00 MONDAY TO SUNDAY
B135: Security Officer | D135: 1 | E135: 1
B136: Handheld Metal Detector(s) | G136: 3
A138: 2.1.16 | B138: STREKSTROOM
B139: 06:00 TO 18:00 MONDAY TO FRIDAY
A140: Area 3 | B140: Security Officer | D140: 1 | E140: 2
B141: 06:00 TO 18:00 SATURDAY AND SUNDAY/PUBLIC HOLIDAY
B142: Security Officer | D142: 0 | E142: 0
B143: 18:00 TO 06:00 MONDAY TO SUNDAY
B144: Security Officer | D144: 1 | E144: 1
B145: Handheld Metal Detector(s) | G145: 3
A147: 2.1.17 | B147: CALA
B148: 06:00 TO 18:00 MONDAY TO FRIDAY
A149: Area 3 | B149: Security Officer | D149: 1 | E149: 2 | H149: 1
B150: 06:00 TO 18:00 SATURDAY AND SUNDAY/PUBLIC HOLIDAY
B151: Security Officer | D151: 0 | E151: 0
B152: 18:00 TO 06:00 MONDAY TO SUNDAY
B153: Security Officer | D153: 1 | E153: 1
B154: Handheld Metal Detector(s) | G154: 3
A156: 2.1.18 | B156: STERKSPRUIT
B157: 06:00 TO 18:00 MONDAY TO FRIDAY
A158: Area 3 | B158: Security Officer | D158: 1 | E158: 2 | H158: 2
B159: 06:00 TO 18:00 SATURDAY AND SUNDAY/PUBLIC HOLIDAY
B160: Security Officer | D160: 0 | E160: 0
B161: 18:00 TO 06:00 MONDAY TO SUNDAY
B162: Security Officer | D162: 1 | E162: 1
B163: Handheld Metal Detector(s) | G163: 3
A165: 2.1.19 | B165: ALIWAL NORTH
B166: 06:00 TO 18:00 MONDAY TO FRIDAY
A167: Area 3 | B167: Security Officer | D167: 1 | E167: 4 | H167: 2
B168: 06:00 TO 18:00 SATURDAY AND SUNDAY/PUBLIC HOLIDAY
B169: Security Officer | D169: 0 | E169: 0
B170: 18:00 TO 06:00 MONDAY TO SUNDAY
B171: Security Officer | D171: 1 | E171: 1
B172: Handheld Metal Detector(s) | G172: 3
A174: 2.1.20 | B174: BARKLEY EAST
B175: 06:00 TO 18:00 MONDAY TO FRIDAY
A176: Area 3 | B176: Security Officer | D176: 1 | E176: 2 | H176: 1
B177: 06:00 TO 18:00 SATURDAY AND SUNDAY/PUBLIC HOLIDAY
B178: Security Officer | D178: 0 | E178: 0
B179: 18:00 TO 06:00 MONDAY TO SUNDAY
B180: Security Officer | D180: 1 | E180: 1
B181: Handheld Metal Detector(s) | G181: 3
A183: 2.1.21 | B183: COFIMVABA
B184: 06:00 TO 18:00 MONDAY TO FRIDAY
A185: Area 3 | B185: Security Officer | D185: 1 | E185: 2 | H185: 1
B186: 06:00 TO 18:00 SATURDAY AND SUNDAY/PUBLIC HOLIDAY
B187: Security Officer | D187: 0 | E187: 0
B188: 18:00 TO 06:00 MONDAY TO SUNDAY
B189: Security Officer | D189: 1 | E189: 1
B190: Handheld Metal Detector(s) | G190: 3
A192: 2.1.22 | B192: DORDRECHT
B193: 06:00 TO 18:00 MONDAY TO FRIDAY
A194: Area 3 | B194: Security Officer | D194: 1 | E194: 3 | H194: 2
B195: 06:00 TO 18:00 SATURDAY AND SUNDAY/PUBLIC HOLIDAY
B196: Security Officer | D196: 0 | E196: 0
B197: 18:00 TO 06:00 MONDAY TO SUNDAY
B198: Security Officer | D198: 1 | E198: 1
B199: Handheld Metal Detector(s) | G199: 3
A201: 2.1.23 | B201: INDWE
B202: 06:00 TO 18:00 MONDAY TO FRIDAY
A203: Area 3 | B203: Security Officer | D203: 1 | E203: 2
B204: 06:00 TO 18:00 SATURDAY AND SUNDAY/PUBLIC HOLIDAY
B205: Security Officer | D205: 0 | E205: 0
B206: 18:00 TO 06:00 MONDAY TO SUNDAY
B207: Security Officer | D207: 1 | E207: 1
B208: Handheld Metal Detector(s) | G208: 3
A210: 2.1.24 | B210: LADY FRERE
B211: 06:00 TO 18:00 MONDAY TO FRIDAY
A212: Area 3 | B212: Security Officer | D212: 1 | E212: 4 | H212: 1
B213: 06:00 TO 18:00 SATURDAY AND SUNDAY/PUBLIC HOLIDAY
B214: Security Officer | D214: 0 | E214: 0
B215: 18:00 TO 06:00 MONDAY TO SUNDAY
B216: Security Officer | D216: 1 | E216: 1
B217: Handheld Metal Detector(s) Guards to be posted at Periodical Court Bholotwa once a week | G217: 3
A219: 2.1.25 | B219: BUTTERWORTH
B220: 06:00 TO 18:00 MONDAY TO FRIDAY
A221: Area 3 | B221: Security Officer | D221: 1 | E221: 3 | H221: 2
B222: 06:00 TO 18:00 SATURDAY AND SUNDAY/PUBLIC HOLIDAY
B223: Security Officer | D223: 0 | E223: 0
B224: 18:00 TO 06:00 MONDAY TO SUNDAY
... 764 more rows

Sheet Gauteng
B1: RFB 2021 __ GP*
A2: Item no | B2: GAUTENG | C2: Grade B | D2: Grade C Armed | E2: Grade C Unarmed | F2: Control Room CCTV | G2: Hand Held Metaldetector(s)
A3: 3.1.1 | B3: REGISTRAR OF THE HIGH COURT, JOHANNESBURG
B4: 06:00 TO 18:00 MONDAY TO FRIDAY
A5: Area 1 | B5: Security Officer | D5: 1 | E5: 15 | H5: 10
B6: 06:00 TO 18:00 SATURDAY AND SUNDAY/PUBLIC HOLIDAY
B7: Security Officer | D7: 0 | E7: 0
B8: 18:00 TO 06:00 MONDAY TO SUNDAY
B9: Security Officer | D9: 1 | E9: 3
B10: Handheld Metal Detector(s) | G10: 5
A12: 3.1.2 | B12: CONSTITUTIONAL COURT, BRAAMFONTEIN
B13: 06:00 TO 18:00 MONDAY TO FRIDAY
A14: Area 1 | B14: Security Officer | D14: 1 | E14: 7
B15: 06:00 TO 18:00 SATURDAY AND SUNDAY/PUBLIC HOLIDAY
B16: Security Officer | D16: 0 | E16: 0
B17: 18:00 TO 06:00 MONDAY TO SUNDAY
B18: Security Officer | D18: 1 | E18: 3
B19: Handheld Metal Detector(s) | G19: 3
A21: 3.1.3 | B21: BOKSBURG
B22: 06:00 TO 18:00 MONDAY TO FRIDAY
A23: Area 1 | B23: Security Officer | D23: 1 | E23: 4 | H23: 1
B24: 06:00 TO 18:00 SATURDAY AND SUNDAY/PUBLIC HOLIDAY
B25: Security Officer | D25: 0 | E25: 0
B26: 18:00 TO 06:00 MONDAY TO SUNDAY
B27: Security Officer | D27: 1 | E27: 1
B28: Handheld Metal Detector(s) | G28: 3
A30: 3.1.4 | B30: GERMISTON
B31: 06:00 TO 18:00 MONDAY TO FRIDAY
A32: Area 1 | B32: Security Officer | D32: 1 | E32: 5 | H32: 2
B33: 06:00 TO 18:00 SATURDAY AND SUNDAY/PUBLIC HOLIDAY
B34: Security Officer | D34: 0 | E34: 0
B35: 18:00 TO 06:00 MONDAY TO SUNDAY
B36: Security Officer | D36: 1 | E36: 2
B37: Handheld Metal Detector(s) | G37: 3
A39: 3.1.5 | B39: GERMISTON: BRANCH COURT, HARDACH STREET
B40: 06:00 TO 18:00 MONDAY TO FRIDAY
A41: Area 1 | B41: Security Officer | D41: 1 | E41: 4
B42: 06:00 TO 18:00 SATURDAY AND SUNDAY/PUBLIC HOLIDAY
B43: Security Officer | D43: 0 | E43: 0
B44: 18:00 TO 06:00 MONDAY TO SUNDAY
B45: Security Officer | D45: 1 | E45: 1
B46: Handheld Metal Detector(s) | G46: 3
A48: 3.1.6 | B48: JOHANNESBURG: BRANCH COURT, BRIXTON
B49: 06:00 TO 18:00 MONDAY TO FRIDAY
A50: Area 1 | B50: Security Officer | D50: 1 | E50: 4
B51: 06:00 TO 18:00 SATURDAY AND SUNDAY/PUBLIC HOLIDAY
B52: Security Officer | D52: 0 | E52: 0
B53: 18:00 TO 06:00 MONDAY TO SUNDAY
B54: Security Officer | D54: 1 | E54: 1
B55: Handheld Metal Detector(s) | G55: 3
A57: 3.1.7 | B57: JOHANNEBURG: BRANCH COURT, KLIPTOWN
B58: 06:00 TO 18:00 MONDAY TO FRIDAY
A59: Area 1 | B59: Security Officer | D59: 1 | E59: 3
B60: 06:00 TO 18:00 SATURDAY AND SUNDAY/PUBLIC HOLIDAY
B61: Security Officer | D61: 0 | E61: 0
B62: 18:00 TO 06:00 MONDAY TO SUNDAY
B63: Security Officer | D63: 1 | E63: 1
B64: Handheld Metal Detector(s) | G64: 3
A66: 3.1.8 | B66: JOHANNESBURG: ORLANDO
B67: 06:00 TO 18:00 MONDAY TO FRIDAY
A68: Area 1 | B68: Security Officer | D68: 1 | E68: 5
B69: 06:00 TO 18:00 SATURDAY AND SUNDAY/PUBLIC HOLIDAY
B70: Security Officer | D70: 0 | E70: 0
B71: 18:00 TO 06:00 MONDAY TO SUNDAY
B72: Security Officer | D72: 1 | E72: 1
B73: Handheld Metal Detector(s) | G73: 3
A75: 3.1.9 | B75: JOHANNESBURG: BRANCH COURT, SOWETO (PROTEA
B76: 06:00 TO 18:00 MONDAY TO FRIDAY
A77: Area 1 | B77: Security Officer | D77: 1 | E77: 7 | H77: 1
B78: 06:00 TO 18:00 SATURDAY AND SUNDAY/PUBLIC HOLIDAY
B79: Security Officer | D79: 0 | E79: 0
B80: 18:00 TO 06:00 MONDAY TO SUNDAY
B81: Security Officer | D81: 1 | E81: 1
B82: Handheld Metal Detector(s) | G82: 3
A84: 3.1.10 | B84: JOHANNESBURG: 15 MARKET STREET
B85: 06:00 TO 18:00 MONDAY TO FRIDAY
A86: Area 1 | B86: Security Officer | D86: 1 | E86: 3
B87: 06:00 TO 18:00 SATURDAY AND SUNDAY/PUBLIC HOLIDAY
B88: Security Officer | D88: 0 | E88: 0
B89: 18:00 TO 06:00 MONDAY TO SUNDAY
B90: Security Officer | D90: 1 | E90: 1
B91: Handheld Metal Detector(s) | G91: 4
A93: 3.1.11 | B93: RANDBURG
B94: 06:00 TO 18:00 MONDAY TO FRIDAY
A95: Area 1 | B95: Security Officer | D95: 1 | E95: 6 | H95: 2
B96: 06:00 TO 18:00 SATURDAY AND SUNDAY/PUBLIC HOLIDAY
B97: Security Officer | D97: 0 | E97: 0
B98: 18:00 TO 06:00 MONDAY TO SUNDAY
B99: Security Officer | D99: 1 | E99: 1
B100: Handheld Metal Detector(s) | G100: 5
A102: 3.1.12 | B102: RANDBURG: BRANCH COURT, WYNBERG/ALEXANDRIA
B103: 06:00 TO 18:00 MONDAY TO FRIDAY
A104: Area 1 | B104: Security Officer | D104: 1 | E104: 7 | H104: 1
B105: 06:00 TO 18:00 SATURDAY AND SUNDAY/PUBLIC HOLIDAY
B106: Security Officer | D106: 0 | E106: 0
B107: 18:00 TO 06:00 MONDAY TO SUNDAY
B108: Security Officer | D108: 1 | E108: 1
B109: Handheld Metal Detector(s) | G109: 5
A111: 3.1.13 | B111: JOHANNESBURG
B112: 06:00 TO 18:00 MONDAY TO FRIDAY
A113: Area 1 | B113: Security Officer | D113: 2 | E113: 15 | H113: 3
B114: 06:00 TO 18:00 SATURDAY AND SUNDAY/PUBLIC HOLIDAY
B115: Security Officer | D115: 0 | E115: 0
B116: 18:00 TO 06:00 MONDAY TO SUNDAY
B117: Security Officer | D117: 1 | E117: 2
B118: Handheld Metal Detector(s) | G118: 5
A120: 3.1.14 | B120: KRUGERSDORP
B121: 06:00 TO 18:00 MONDAY TO FRIDAY
A122: Area 1 | B122: Security Officer | D122: 1 | E122: 4 | H122: 1
B123: 06:00 TO 18:00 SATURDAY AND SUNDAY/PUBLIC HOLIDAY
B124: Security Officer | D124: 0 | E124: 0
B125: 18:00 TO 06:00 MONDAY TO SUNDAY
B126: Security Officer | D126: 1 | E126: 1
B127: Handheld Metal Detector(s) | G127: 3
A129: 3.1.15 | B129: FAMILY COURT, BOKSBURG
B130: 06:00 TO 18:00 MONDAY TO FRIDAY
A131: Area 1 | B131: Security Officer | D131: 1 | E131: 3
B132: 06:00 TO 18:00 SATURDAY AND SUNDAY/PUBLIC HOLIDAY
B133: Security Officer | D133: 0 | E133: 0
B134: 18:00 TO 06:00 MONDAY TO SUNDAY
B135: Security Officer | D135: 1 | E135: 1
B136: Handheld Metal Detector(s) | G136: 3
A138: 3.1.16 | B138: REGISTRAR OF THE LABOUR COURT, JHB
B139: 06:00 TO 18:00 MONDAY TO FRIDAY
A140: Area 1 | B140: Security Officer | D140: 1 | E140: 4 | H140: 1
B141: 06:00 TO 18:00 SATURDAY AND SUNDAY/PUBLIC HOLIDAY
B142: Security Officer | D142: 0 | E142: 0
B143: 18:00 TO 06:00 MONDAY TO SUNDAY
B144: Security Officer | D144: 1 | E144: 1
B145: Handheld Metal Detector(s) | G145: 3
A147: 3.1.17 | B147: FAMILY ADVOCATE, JOHANNESBURG
B148: 06:00 TO 18:00 MONDAY TO FRIDAY
A149: Area 1 | B149: Security Officer | D149: 1 | E149: 3
B150: 06:00 TO 18:00 SATURDAY AND SUNDAY/PUBLIC HOLIDAY
B151: Security Officer | D151: 0 | E151: 0
B152: 18:00 TO 06:00 MONDAY TO SUNDAY
B153: Security Officer | D153: 1 | E153: 1
B154: Handheld Metal Detector(s) | G154: 3
A156: 3.1.18 | B156: MASTER OF THE HIGH COURT, JOHANNESBURG
B157: 06:00 TO 18:00 MONDAY TO FRIDAY
A158: Area 1 | B158: Security Officer | D158: 1 | E158: 6 | H158: 1
B159: 06:00 TO 18:00 SATURDAY AND SUNDAY/PUBLIC HOLIDAY
B160: Security Officer | D160: 0 | E160: 0
B161: 18:00 TO 06:00 MONDAY TO SUNDAY
B162: Security Officer | D162: 1 | E162: 1
B163: Handheld Metal Detector(s) | G163: 5
A165: 3.1.19 | B165: RANDFONTEIN
B166: 06:00 TO 18:00 MONDAY TO FRIDAY
A167: Area 1 | B167: Security Officer | D167: 1 | E167: 5
B168: 06:00 TO 18:00 SATURDAY AND SUNDAY/PUBLIC HOLIDAY
B169: Security Officer | D169: 0 | E169: 0
B170: 18:00 TO 06:00 MONDAY TO SUNDAY
B171: Security Officer | D171: 1 | E171: 1
B172: Handheld Metal Detector(s) | G172: 3
A174: 3.1.20 | B174: BRAKPAN, BRANCH COURT TSAKANE
B175: 06:00 TO 18:00 MONDAY TO FRIDAY
A176: Area 1 | B176: Security Officer | D176: 1 | E176: 5
B177: 06:00 TO 18:00 SATURDAY AND SUNDAY/PUBLIC HOLIDAY
B178: Security Officer | D178: 0 | E178: 0
B179: 18:00 TO 06:00 MONDAY TO SUNDAY
B180: Security Officer | D180: 1 | E180: 1
B181: Handheld Metal Detector(s) | G181: 3
A183: 3.1.21 | B183: ROODEPOORT
B184: 06:00 TO 18:00 MONDAY TO FRIDAY
A185: Area 1 | B185: Security Officer | D185: 1 | E185: 7 | H185: 2
B186: 06:00 TO 18:00 SATURDAY AND SUNDAY/PUBLIC HOLIDAY
B187: Security Officer | D187: 0 | E187: 0
B188: 18:00 TO 06:00 MONDAY TO SUNDAY
B189: Security Officer | D189: 1 | E189: 1
B190: Handheld Metal Detector(s) | G190: 5
A192: 3.1.22 | B192: KRUGERSDORP: BRANCH COURT, KAGISO
B193: 06:00 TO 18:00 MONDAY TO FRIDAY
A194: Area 1 | B194: Security Officer | D194: 1 | E194: 6 | H194: 2
B195: 06:00 TO 18:00 SATURDAY AND SUNDAY/PUBLIC HOLIDAY
B196: Security Officer | D196: 0 | E196: 0
B197: 18:00 TO 06:00 MONDAY TO SUNDAY
B198: Security Officer | D198: 1 | E198: 1
B199: Handheld Metal Detector(s) | G199: 5
A201: 3.1.23 | B201: JOHANNESBURG: BRANCH COURT, BOOYSEN
B202: 06:00 TO 18:00 MONDAY TO FRIDAY
A203: Area 1 | B203: Security Officer | D203: 1 | E203: 8 | H203: 2
B204: 06:00 TO 18:00 SATURDAY AND SUNDAY/PUBLIC HOLIDAY
B205: Security Officer | D205: 0 | E205: 0
B206: 18:00 TO 06:00 MONDAY TO SUNDAY
B207: Security Officer | D207: 1 | E207: 2
B208: Handheld Metal Detector(s) | G208: 3
A210: 3.1.24 | B210: JOHANNEBURG: BRANCH COURT, HILLBROW
B211: 06:00 TO 18:00 MONDAY TO FRIDAY
A212: Area 1 | B212: Security Officer | D212: 1 | E212: 4
B213: 06:00 TO 18:00 SATURDAY AND SUNDAY/PUBLIC HOLIDAY
B214: Security Officer | D214: 0 | E214: 0
B215: 18:00 TO 06:00 MONDAY TO SUNDAY
B216: Security Officer | D216: 1 | E216: 1
B217: Handheld Metal Detector(s) | G217: 3
A219: 3.1.25 | B219: JOHANNESBURG: BRANCH COURT, JEPPE
B220: 06:00 TO 18:00 MONDAY TO FRIDAY
A221: Area 1 | B221: Security Officer | D221: 1 | E221: 3
B222: 06:00 TO 18:00 SATURDAY AND SUNDAY/PUBLIC HOLIDAY
B223: Security Officer | D223: 0 | E223: 0
B224: 18:00 TO 06:00 MONDAY TO SUNDAY
... 523 more rows

Sheet Western Cape
B1: RFB 2021 __ WC
A2: Item no | B2: WESTERN CAPE | C2: Grade B | D2: Grade C Armed | E2: Grade C Unarmed | F2: Control Room CCTV | G2: Hand Held Metaldetector(s)
A3: 4.1.01 | B3: REGIONAL OFFICE, CAPE TOWN W/C
B4: 06:00 TO 18:00 MONDAY TO FRIDAY
A5: Area 1 | B5: Security Officer | D5: 1 | E5: 3
B6: 06:00 TO 18:00 SATURDAY AND SUNDAY/PUBLIC HOLIDAY
B7: Security Officer | D7: 0
B8: 18:00 TO 06:00 MONDAY TO SUNDAY
B9: Security Officer | D9: 1
B10: Handheld Metal Detector(s) | G10: 3
A12: 4.1.02 | B12: REGISTRAR OF THE HIGH COURT, CAPE TOWN
B13: 06:00 TO 18:00 MONDAY TO FRIDAY
A14: Area 1 | B14: Security Officer | D14: 2 | E14: 9 | H14: 3
B15: 06:00 TO 18:00 SATURDAY AND SUNDAY/PUBLIC HOLIDAY
B16: Security Officer | D16: 0 | E16: 0
B17: 18:00 TO 06:00 MONDAY TO SUNDAY
B18: Security Officer | D18: 1 | E18: 1
B19: Handheld Metal Detector(s) | G19: 5
A21: 4.1.03 | B21: LABOUR COURT, CAPE TOWN
B22: 06:00 TO 18:00 MONDAY TO FRIDAY
A23: Area 1 | B23: Security Officer | D23: 1 | E23: 2
B24: 06:00 TO 18:00 SATURDAY AND SUNDAY/PUBLIC HOLIDAY
B25: Security Officer | D25: 0 | E25: 0
B26: 18:00 TO 06:00 MONDAY TO SUNDAY
B27: Security Officer | D27: 1 | E27: 1
B28: Handheld Metal Detector(s) | G28: 3
A30: 4.1.04 | B30: CAPE TOWN: MASTER'S OFFICE, 45 ON CASTLE BUILDING, CASTLE STREET
B31: 06:00 TO 18:00 MONDAY TO FRIDAY
A32: Area 1 | B32: Security Officer | D32: 1 | E32: 3 | H32: 1
B33: 06:00 TO 18:00 SATURDAY AND SUNDAY/PUBLIC HOLIDAY
B34: Security Officer | D34: 0 | E34: 0
B35: 18:00 TO 06:00 MONDAY TO SUNDAY
B36: Security Officer | D36: 1 | E36: 1
B37: Handheld Metal Detector(s) | G37: 3
A39: 4.1.05 | B39: MAGISRATE OFFICE, CAPE TOWN (NSIP)
B40: 06:00 TO 18:00 MONDAY TO FRIDAY
A41: Area 1 | B41: Security Officer | D41: 2 | E41: 5 | H41: 2
B42: 06:00 TO 18:00 SATURDAY AND SUNDAY/PUBLIC HOLIDAY
B43: Security Officer | D43: 0 | E43: 0
B44: 18:00 TO 06:00 MONDAY TO SUNDAY
B45: Security Officer | D45: 1 | E45: 1
B46: Handheld Metal Detector(s) | G46: 5
A48: 4.1.06 | B48: CAPE TOWN, REGIONAL COURT + FAMILY COURT (IUSTITIA BUILDING)
B49: 06:00 TO 18:00 MONDAY TO FRIDAY
A50: Area 1 | B50: Security Officer | D50: 1 | E50: 4 | H50: 1
B51: 06:00 TO 18:00 SATURDAY AND SUNDAY/PUBLIC HOLIDAY
B52: Security Officer | D52: 0 | E52: 0
B53: 18:00 TO 06:00 MONDAY TO SUNDAY
B54: Security Officer | D54: 1 | E54: 1
B55: Handheld Metal Detector(s) | G55: 5
A57: 4.1.07 | B57: CAPE TOWN:COMMUNITY COURT
B58: 06:00 TO 18:00 MONDAY TO FRIDAY
A59: Area 1 | B59: Security Officer | D59: 1 | E59: 2
B60: 06:00 TO 18:00 SATURDAY AND SUNDAY/PUBLIC HOLIDAY
B61: Security Officer | D61: 0
B62: 18:00 TO 06:00 MONDAY TO SUNDAY
B63: Security Officer | D63: 1
B64: Handheld Metal Detector(s) | G64: 3
A66: 4.1.08 | B66: KHAYELITSHA MAGISTRATE (NSIP)
B67: 06:00 TO 18:00 MONDAY TO FRIDAY
A68: Area 1 | B68: Security Officer | D68: 2 | E68: 5 | H68: 1
B69: 06:00 TO 18:00 SATURDAY AND SUNDAY/PUBLIC HOLIDAY
B70: Security Officer | D70: 0 | E70: 0
B71: 18:00 TO 06:00 MONDAY TO SUNDAY
B72: Security Officer | D72: 1 | E72: 2
B73: Handheld Metal Detector(s) | G73: 5
A75: 4.1.09 | B75: MITCHELL'S PLAIN MAGISTRATE
B76: 06:00 TO 18:00 MONDAY TO FRIDAY
A77: Area 1 | B77: Security Officer | D77: 2 | E77: 4 | H77: 2
B78: 06:00 TO 18:00 SATURDAY AND SUNDAY/PUBLIC HOLIDAY
B79: Security Officer | D79: 0 | E79: 0
B80: 18:00 TO 06:00 MONDAY TO SUNDAY
B81: Security Officer | D81: 1 | E81: 2
B82: Handheld Metal Detector(s) | G82: 5
A84: 4.1.10 | B84: WYNBERG MAGISTRATE (NSIP)
B85: 06:00 TO 18:00 MONDAY TO FRIDAY
A86: Area 1 | B86: Security Officer | D86: 2 | E86: 6 | H86: 2
B87: 06:00 TO 18:00 SATURDAY AND SUNDAY/PUBLIC HOLIDAY
B88: Security Officer | D88: 0 | E88: 0
B89: 18:00 TO 06:00 MONDAY TO SUNDAY
B90: Security Officer | D90: 1 | E90: 1
B91: Handheld Metal Detector(s) | G91: 5
A93: 4.1.11 | B93: SIMON’S TOWN MAGISTRATE
B94: 06:00 TO 18:00 MONDAY TO FRIDAY
A95: Area 1 | B95: Security Officer | D95: 1 | E95: 4
B96: 06:00 TO 18:00 SATURDAY AND SUNDAY/PUBLIC HOLIDAY
B97: Security Officer | D97: 0 | E97: 0
B98: 18:00 TO 06:00 MONDAY TO SUNDAY
B99: Security Officer | D99: 1 | E99: 1
B100: Handheld Metal Detector(s) | G100: 3
A102: 4.1.12 | B102: SIMONS TOWN: PERIODICAL COURT, MUIZENBERG
B103: 06:00 TO 18:00 MONDAY TO FRIDAY
A104: Area 1 | B104: Security Officer | D104: 1 | E104: 2
B105: 06:00 TO 18:00 SATURDAY AND SUNDAY/PUBLIC HOLIDAY
B106: Security Officer | D106: 0
B107: 18:00 TO 06:00 MONDAY TO SUNDAY
B108: Security Officer | D108: 1 | E108: 1
B109: Handheld Metal Detector(s) | G109: 3
A111: 4.1.13 | B111: ATHLONE MAGISTRATE
B112: 06:00 TO 18:00 MONDAY TO FRIDAY
A113: Area 1 | B113: Security Officer | D113: 1 | E113: 4 | H113: 1
B114: 06:00 TO 18:00 SATURDAY AND SUNDAY/PUBLIC HOLIDAY
B115: Security Officer | D115: 0
B116: 18:00 TO 06:00 MONDAY TO SUNDAY
B117: Security Officer | D117: 1
B118: Handheld Metal Detector(s) | G118: 3
A120: 4.1.14 | B120: ATHLONE: MAINTENANCE COURT (BHORAT CENTRE)
B121: 06:00 TO 18:00 MONDAY TO FRIDAY
A122: Area 1 | B122: Security Officer | D122: 1 | E122: 1
B123: 06:00 TO 18:00 SATURDAY AND SUNDAY/PUBLIC HOLIDAY
B124: Security Officer | D124: 0 | E124: 0
B125: 18:00 TO 06:00 MONDAY TO SUNDAY
B126: Security Officer | D126: 1 | E126: 1
B127: Handheld Metal Detector(s) | G127: 3
A129: 4.1.15 | B129: WYNBERG: BRANCH COURT, PHILLIPPI
B130: 06:00 TO 18:00 MONDAY TO FRIDAY
A131: Area 1 | B131: Security Officer | D131: 1 | E131: 5
B132: 06:00 TO 18:00 SATURDAY AND SUNDAY/PUBLIC HOLIDAY
B133: Security Officer | D133: 0 | E133: 0
B134: 18:00 TO 06:00 MONDAY TO SUNDAY
B135: Security Officer | D135: 1 | E135: 1
B136: Handheld Metal Detector(s) | G136: 3
A138: 4.1.16 | B138: WYNBERG: FEZEKA COMMUNITY COURT
B139: 06:00 TO 18:00 MONDAY TO FRIDAY
A140: Area 1 | B140: Security Officer | D140: 1 | E140: 2
B141: 06:00 TO 18:00 SATURDAY AND SUNDAY/PUBLIC HOLIDAY
B142: Security Officer | D142: 0
B143: 18:00 TO 06:00 MONDAY TO SUNDAY
B144: Security Officer | D144: 1 | E144: 1
B145: Handheld Metal Detector(s) | G145: 2
A147: 4.1.17 | B147: BELLVILLE MAGISTRATE (NSIP)
B148: 06:00 TO 18:00 MONDAY TO FRIDAY
A149: Area 1 | B149: Security Officer | D149: 2 | E149: 7 | H149: 1
B150: 06:00 TO 18:00 SATURDAY AND SUNDAY/PUBLIC HOLIDAY
B151: Security Officer | D151: 0 | E151: 0
B152: 18:00 TO 06:00 MONDAY TO SUNDAY
B153: Security Officer | D153: 1 | E153: 1
B154: Handheld Metal Detector(s) | G154: 5
A156: 4.1.18 | B156: PAROW REGIONAL COURT
B157: 06:00 TO 18:00 MONDAY TO FRIDAY
A158: Area 1 | B158: Security Officer | D158: 1 | E158: 3
B159: 06:00 TO 18:00 SATURDAY AND SUNDAY/PUBLIC HOLIDAY
B160: Security Officer | D160: 0 | E160: 0
B161: 18:00 TO 06:00 MONDAY TO SUNDAY
B162: Security Officer | D162: 1 | E162: 1
B163: Handheld Metal Detector(s) | G163: 3
A165: 4.1.19 | B165: GOODWOOD MAGISTRATE
B166: 06:00 TO 18:00 MONDAY TO FRIDAY
A167: Area 1 | B167: Security Officer | D167: 1 | E167: 3 | H167: 1
B168: 06:00 TO 18:00 SATURDAY AND SUNDAY/PUBLIC HOLIDAY
B169: Security Officer | D169: 0 | E169: 0
B170: 18:00 TO 06:00 MONDAY TO SUNDAY
B171: Security Officer | D171: 1 | E171: 1
B172: Handheld Metal Detector(s) | G172: 3
A174: 4.1.20 | B174: GOODWOOD: BRANCH COURT, BISHOP LAVIS (NSIP)
B175: 06:00 TO 18:00 MONDAY TO FRIDAY
A176: Area 1 | B176: Security Officer | D176: 2 | E176: 3
B177: 06:00 TO 18:00 SATURDAY AND SUNDAY/PUBLIC HOLIDAY
B178: Security Officer | D178: 0 | E178: 0
B179: 18:00 TO 06:00 MONDAY TO SUNDAY
B180: Security Officer | D180: 1 | E180: 1
B181: Handheld Metal Detector(s) | G181: 3
A183: 4.1.21 | B183: KUILS RIVER MAGISTRATE (NSIP)
B184: 06:00 TO 18:00 MONDAY TO FRIDAY
A185: Area 1 | B185: Security Officer | D185: 2 | E185: 3
B186: 06:00 TO 18:00 SATURDAY AND SUNDAY/PUBLIC HOLIDAY
B187: Security Officer | D187: 0 | E187: 0
B188: 18:00 TO 06:00 MONDAY TO SUNDAY
B189: Security Officer | D189: 1 | E189: 1
B190: Handheld Metal Detector(s) | G190: 3
A192: 4.1.22 | B192: KUILSRIVER: BRANCH COURT, BLUEDOWNS (NSIP)
B193: 06:00 TO 18:00 MONDAY TO FRIDAY
A194: Area 1 | B194: Security Officer | D194: 2 | E194: 4 | H194: 2
B195: 06:00 TO 18:00 SATURDAY AND SUNDAY/PUBLIC HOLIDAY
B196: Security Officer | D196: 0 | E196: 0
B197: 18:00 TO 06:00 MONDAY TO SUNDAY
B198: Security Officer | D198: 1 | E198: 1
B199: Handheld Metal Detector(s) | G199: 3
A201: 4.1.23 | B201: SOMERSET WEST MAGISTRATE (NSIP)
B202: 06:00 TO 18:00 MONDAY TO FRIDAY
A203: Area 1 | B203: Security Officer | D203: 2 | E203: 4 | H203: 1
B204: 06:00 TO 18:00 SATURDAY AND SUNDAY/PUBLIC HOLIDAY
B205: Security Officer | D205: 0 | E205: 0
B206: 18:00 TO 06:00 MONDAY TO SUNDAY
B207: Security Officer | D207: 1 | E207: 1
B208: Handheld Metal Detector(s) | G208: 3
A210: 4.1.24 | B210: STRAND MAGISTRATE
B211: 06:00 TO 18:00 MONDAY TO FRIDAY
A212: Area 1 | B212: Security Officer | D212: 1 | E212: 3
B213: 06:00 TO 18:00 SATURDAY AND SUNDAY/PUBLIC HOLIDAY
B214: Security Officer | D214: 0 | E214: 0
B215: 18:00 TO 06:00 MONDAY TO SUNDAY
B216: Security Officer | D216: 1 | E216: 0
B217: Handheld Metal Detector(s) | G217: 3
A219: 4.1.25 | B219: STATE ATTORNEY, CAPE TOWN
B220: 06:00 TO 18:00 MONDAY TO FRIDAY
A221: Area 1 | B221: Security Officer | E221: 2
B222: 06:00 TO 18:00 SATURDAY AND SUNDAY/PUBLIC HOLIDAY
B223: Security Officer | E223: 0
B224: 18:00 TO 06:00 MONDAY TO SUNDAY
... 531 more rows

Sheet Limpopo
B1: RFB 2021 __ LP*
A2: Item no | B2: LIMPOPO | C2: Grade B | D2: Grade C Armed | E2: Grade C Unarmed | F2: Control Room CCTV | G2: Hand Held Metaldetector(s)
A3: 5.1.1 | B3: SENWABARWANA/BOCHUM
B4: 06:00 TO 18:00 MONDAY TO FRIDAY
A5: Area 3 | B5: Security Officer | D5: 1 | E5: 2
B6: 06:00 TO 18:00 SATURDAY AND SUNDAY/PUBLIC HOLIDAY
B7: Security Officer | D7: 0 | E7: 0
B8: 18:00 TO 06:00 MONDAY TO SUNDAY
B9: Security Officer | D9: 1 | E9: 1
B10: Handheld Metal Detector(s) | G10: 3
A12: 5.1.2 | B12: MODIMOLLE
B13: 06:00 TO 18:00 MONDAY TO FRIDAY
A14: Area 3 | B14: Security Officer | D14: 1 | E14: 3 | H14: 1
B15: 06:00 TO 18:00 SATURDAY AND SUNDAY/PUBLIC HOLIDAY
B16: Security Officer | D16: 0 | E16: 0
B17: 18:00 TO 06:00 MONDAY TO SUNDAY
B18: Security Officer | D18: 1 | E18: 1
B19: Handheld Metal Detector(s) | G19: 3
A21: 5.1.3 | B21: PHALALA
B22: 06:00 TO 18:00 MONDAY TO FRIDAY
A23: Area 3 | B23: Security Officer | D23: 1 | E23: 2
B24: 06:00 TO 18:00 SATURDAY AND SUNDAY/PUBLIC HOLIDAY
B25: Security Officer | D25: 0 | E25: 0
B26: 18:00 TO 06:00 MONDAY TO SUNDAY
B27: Security Officer | D27: 1 | E27: 1
B28: Handheld Metal Detector(s) | G28: 3
A30: 5.1.4 | B30: NAMAKGALE
B31: 06:00 TO 18:00 MONDAY TO FRIDAY
A32: Area 3 | B32: Security Officer | D32: 1 | E32: 3
B33: 06:00 TO 18:00 SATURDAY AND SUNDAY/PUBLIC HOLIDAY
B34: Security Officer | D34: 0 | E34: 0
B35: 18:00 TO 06:00 MONDAY TO SUNDAY
B36: Security Officer | D36: 1 | E36: 1
B37: Handheld Metal Detector(s) | G37: 3
A39: 5.1.5 | B39: LEPHALALE / ELLISRAS
B40: 06:00 TO 18:00 MONDAY TO FRIDAY
A41: Area 3 | B41: Security Officer | D41: 1 | E41: 3
B42: 06:00 TO 18:00 SATURDAY AND SUNDAY/PUBLIC HOLIDAY
B43: Security Officer | D43: 0 | E43: 0
B44: 18:00 TO 06:00 MONDAY TO SUNDAY
B45: Security Officer | D45: 1 | E45: 1
B46: Handheld Metal Detector(s) | G46: 3
A48: 5.1.6 | B48: MAHWELERENG / MOKERONG
B49: 06:00 TO 18:00 MONDAY TO FRIDAY
A50: Area 3 | B50: Security Officer | D50: 1 | E50: 3
B51: 06:00 TO 18:00 SATURDAY AND SUNDAY/PUBLIC HOLIDAY
B52: Security Officer | D52: 0 | E52: 0
B53: 18:00 TO 06:00 MONDAY TO SUNDAY
B54: Security Officer | D54: 1 | E54: 1
B55: Handheld Metal Detector(s) | G55: 3
A57: 5.1.7 | B57: LEBOWAKGOMO: PERIODICAL COURT, MAGATLE
B58: 06:00 TO 18:00 MONDAY TO FRIDAY
A59: Area 3 | B59: Security Officer | E59: 2
B60: 06:00 TO 18:00 SATURDAY AND SUNDAY/PUBLIC HOLIDAY
B61: Security Officer | E61: 0
B62: 18:00 TO 06:00 MONDAY TO SUNDAY
B63: Security Officer | E63: 2
B64: Handheld Metal Detector(s) | G64: 2
A66: 5.1.8 | B66: MAHWELERENG: PERIODICAL COURT, GILEAD
B67: 06:00 TO 18:00 MONDAY TO FRIDAY
A68: Area 3 | B68: Security Officer | E68: 2
B69: 06:00 TO 18:00 SATURDAY AND SUNDAY/PUBLIC HOLIDAY
B70: Security Officer | E70: 0
B71: 18:00 TO 06:00 MONDAY TO SUNDAY
B72: Security Officer | E72: 2
B73: Handheld Metal Detector(s) | G73: 2
A75: 5.1.9 | B75: MOKOPANE
B76: 06:00 TO 18:00 MONDAY TO FRIDAY
A77: Area 3 | B77: Security Officer | D77: 1 | E77: 2
B78: 06:00 TO 18:00 SATURDAY AND SUNDAY/PUBLIC HOLIDAY
B79: Security Officer | D79: 0 | E79: 0
B80: 18:00 TO 06:00 MONDAY TO SUNDAY
B81: Security Officer | D81: 1 | E81: 1
B82: Handheld Metal Detector(s) | G82: 3
A84: 5.1.10 | B84: POLOKWANE
B85: 06:00 TO 18:00 MONDAY TO FRIDAY
A86: Area 3 | B86: Security Officer | D86: 1 | E86: 5 | H86: 2
B87: 06:00 TO 18:00 SATURDAY AND SUNDAY/PUBLIC HOLIDAY
B88: Security Officer | D88: 0 | E88: 0
B89: 18:00 TO 06:00 MONDAY TO SUNDAY
B90: Security Officer | D90: 1 | E90: 2
B91: Handheld Metal Detector(s) | G91: 3
A93: 5.1.11 | B93: MANKWENG
B94: 06:00 TO 18:00 MONDAY TO FRIDAY
A95: Area 3 | B95: Security Officer | D95: 1 | E95: 3 | H95: 1
B96: 06:00 TO 18:00 SATURDAY AND SUNDAY/PUBLIC HOLIDAY
B97: Security Officer | D97: 0 | E97: 0
B98: 18:00 TO 06:00 MONDAY TO SUNDAY
B99: Security Officer | D99: 1 | E99: 1
B100: Handheld Metal Detector(s) | G100: 3
A102: 5.1.12 | B102: THABAZIMBI
B103: 06:00 TO 18:00 MONDAY TO FRIDAY
A104: Area 3 | B104: Security Officer | D104: 1 | E104: 3
B105: 06:00 TO 18:00 SATURDAY AND SUNDAY/PUBLIC HOLIDAY
B106: Security Officer | D106: 0 | E106: 0
B107: 18:00 TO 06:00 MONDAY TO SUNDAY
B108: Security Officer | D108: 1 | E108: 1
B109: Handheld Metal Detector(s) | G109: 3
A111: 5.1.13 | B111: NORTHAM
B112: 06:00 TO 18:00 MONDAY TO FRIDAY
A113: Area 3 | B113: Security Officer | D113: 1 | E113: 2
B114: 06:00 TO 18:00 SATURDAY AND SUNDAY/PUBLIC HOLIDAY
B115: Security Officer | D115: 0 | E115: 0
B116: 18:00 TO 06:00 MONDAY TO SUNDAY
B117: Security Officer | D117: 1 | E117: 1
B118: Handheld Metal Detector(s) | G118: 3
A120: 5.1.14 | B120: BELA-BELA
B121: 06:00 TO 18:00 MONDAY TO FRIDAY
A122: Area 3 | B122: Security Officer | D122: 1 | E122: 3
B123: 06:00 TO 18:00 SATURDAY AND SUNDAY/PUBLIC HOLIDAY
B124: Security Officer | D124: 0 | E124: 0
B125: 18:00 TO 06:00 MONDAY TO SUNDAY
B126: Security Officer | D126: 1 | E126: 1
B127: Handheld Metal Detector(s) | G127: 3
A129: 5.1.15 | B129: REGISTRAR OF THE HIGH COURT, POLOKWANE BLOCK A & C
B130: 06:00 TO 18:00 MONDAY TO FRIDAY
A131: Area 3 | B131: Security Officer | D131: 1 | E131: 9 | H131: 3
B132: 06:00 TO 18:00 SATURDAY AND SUNDAY/PUBLIC HOLIDAY
B133: Security Officer | D133: 0 | E133: 0
B134: 18:00 TO 06:00 MONDAY TO SUNDAY
B135: Security Officer | D135: 1 | E135: 1
B136: Handheld Metal Detector(s) | G136: 5
A138: 5.1.16 | B138: PRAKTISEER: PERIODICAL COURT, LEBOENG
B139: 06:00 TO 18:00 MONDAY TO FRIDAY
A140: Area 3 | B140: Security Officer | E140: 2
B141: 06:00 TO 18:00 SATURDAY AND SUNDAY/PUBLIC HOLIDAY
B142: Security Officer | E142: 0
B143: 18:00 TO 06:00 MONDAY TO SUNDAY
B144: Security Officer | E144: 2
B145: Handheld Metal Detector(s) | G145: 2
A147: 5.1.17 | B147: PRAKTISEER: PERIODICAL COURT, MECKLENBURG
B148: 06:00 TO 18:00 MONDAY TO FRIDAY
A149: Area 3 | B149: Security Officer | E149: 2
B150: 06:00 TO 18:00 SATURDAY AND SUNDAY/PUBLIC HOLIDAY
B151: Security Officer | E151: 0
B152: 18:00 TO 06:00 MONDAY TO SUNDAY
B153: Security Officer | E153: 2
B154: Handheld Metal Detector(s) | G154: 2
A156: 5.1.18 | B156: PRAKTISEER
B157: 06:00 TO 18:00 MONDAY TO FRIDAY
A158: Area 3 | B158: Security Officer | D158: 1 | E158: 2
B159: 06:00 TO 18:00 SATURDAY AND SUNDAY/PUBLIC HOLIDAY
B160: Security Officer | D160: 0 | E160: 0
B161: 18:00 TO 06:00 MONDAY TO SUNDAY
B162: Security Officer | D162: 1 | E162: 1
B163: Handheld Metal Detector(s) | G163: 3
A165: 5.1.19 | B165: SEKHUKHUNE
B166: 06:00 TO 18:00 MONDAY TO FRIDAY
A167: Area 3 | B167: Security Officer | D167: 1 | E167: 3
B168: 06:00 TO 18:00 SATURDAY AND SUNDAY/PUBLIC HOLIDAY
B169: Security Officer | D169: 0 | E169: 0
B170: 18:00 TO 06:00 MONDAY TO SUNDAY
B171: Security Officer | D171: 1 | E171: 1
B172: Handheld Metal Detector(s) | G172: 3
A174: 5.1.20 | B174: SESHEGO
B175: 06:00 TO 18:00 MONDAY TO FRIDAY
A176: Area 3 | B176: Security Officer | D176: 1 | E176: 3
B177: 06:00 TO 18:00 SATURDAY AND SUNDAY/PUBLIC HOLIDAY
B178: Security Officer | D178: 0 | E178: 0
B179: 18:00 TO 06:00 MONDAY TO SUNDAY
B180: Security Officer | D180: 1 | E180: 1
B181: Handheld Metal Detector(s) | G181: 3
A183: 5.1.21 | B183: SESHEGO: PERIODICAL COURT, MATLALA
B184: 06:00 TO 18:00 MONDAY TO FRIDAY
A185: Area 3 | B185: Security Officer | E185: 2
B186: 06:00 TO 18:00 SATURDAY AND SUNDAY/PUBLIC HOLIDAY
B187: Security Officer | E187: 0
B188: 18:00 TO 06:00 MONDAY TO SUNDAY
B189: Security Officer | E189: 2
B190: Handheld Metal Detector(s) | G190: 2
A192: 5.1.22 | B192: NEBO
B193: 06:00 TO 18:00 MONDAY TO FRIDAY
A194: Area 3 | B194: Security Officer | D194: 1 | E194: 3
B195: 06:00 TO 18:00 SATURDAY AND SUNDAY/PUBLIC HOLIDAY
B196: Security Officer | D196: 0 | E196: 0
B197: 18:00 TO 06:00 MONDAY TO SUNDAY
B198: Security Officer | D198: 1 | E198: 1
B199: Handheld Metal Detector(s) | G199: 3
A201: 5.1.23 | B201: GROBLERSDAL: PERIODICAL COURT, MOTETEMA
B202: 06:00 TO 18:00 MONDAY TO FRIDAY
A203: Area 3 | B203: Security Officer | D203: 1 | E203: 1
B204: 06:00 TO 18:00 SATURDAY AND SUNDAY/PUBLIC HOLIDAY
B205: Security Officer | D205: 0 | E205: 0
B206: 18:00 TO 06:00 MONDAY TO SUNDAY
B207: Security Officer | D207: 1 | E207: 1
B208: Handheld Metal Detector(s) | G208: 2
A210: 5.1.24 | B210: MOOKGOPHONG (NABOOMSPRUIT)
B211: 06:00 TO 18:00 MONDAY TO FRIDAY
A212: Area 3 | B212: Security Officer | D212: 1 | E212: 2
B213: 06:00 TO 18:00 SATURDAY AND SUNDAY/PUBLIC HOLIDAY
B214: Security Officer | D214: 0 | E214: 0
B215: 18:00 TO 06:00 MONDAY TO SUNDAY
B216: Security Officer | D216: 1 | E216: 1
B217: Handheld Metal Detector(s) | G217: 3
A219: 5.1.25 | B219: LEBOWAKGOMO / THABAMOOPO
B220: 06:00 TO 18:00 MONDAY TO FRIDAY
A221: Area 3 | B221: Security Officer | D221: 1 | E221: 3
B222: 06:00 TO 18:00 SATURDAY AND SUNDAY/PUBLIC HOLIDAY
B223: Security Officer | D223: 0 | E223: 0
B224: 18:00 TO 06:00 MONDAY TO SUNDAY
... 308 more rows

Sheet North west
B1: RFB 2021 __ NW*
A2: Item no | B2: NORTH WEST | C2: Grade B | D2: Grade C Armed | E2: Grade C Unarmed | F2: Control Room CCTV | G2: Hand Held Metaldetector(s)
A3: 6.1.1 | B3: BRITS
B4: 06:00 TO 18:00 MONDAY TO FRIDAY
A5: Area 3 | B5: Security Officer | D5: 1 | E5: 3
B6: 06:00 TO 18:00 SATURDAY AND SUNDAY/PUBLIC HOLIDAY
B7: Security Officer | D7: 0 | E7: 0
B8: 18:00 TO 06:00 MONDAY TO SUNDAY
B9: Security Officer | D9: 1 | E9: 1
B10: Handheld Metal Detector(s) | G10: 3
A12: 6.1.2 | B12: GANYESA
B13: 06:00 TO 18:00 MONDAY TO FRIDAY
A14: Area 3 | B14: Security Officer | D14: 1 | E14: 2
B15: 06:00 TO 18:00 SATURDAY AND SUNDAY/PUBLIC HOLIDAY
B16: Security Officer | D16: 0 | E16: 0
B17: 18:00 TO 06:00 MONDAY TO SUNDAY
B18: Security Officer | D18: 1 | E18: 1
B19: Handheld Metal Detector(s) | G19: 3
A21: 6.1.3 | B21: TAUNG
B22: 06:00 TO 18:00 MONDAY TO FRIDAY
A23: Area 3 | B23: Security Officer | D23: 1 | E23: 3
B24: 06:00 TO 18:00 SATURDAY AND SUNDAY/PUBLIC HOLIDAY
B25: Security Officer | D25: 0 | E25: 0
B26: 18:00 TO 06:00 MONDAY TO SUNDAY
B27: Security Officer | D27: 1 | E27: 1
B28: Handheld Metal Detector(s) | G28: 3
A30: 6.1.4 | B30: LICHTENBURG
B31: 06:00 TO 18:00 MONDAY TO FRIDAY
A32: Area 3 | B32: Security Officer | D32: 1 | E32: 3
B33: 06:00 TO 18:00 SATURDAY AND SUNDAY/PUBLIC HOLIDAY
B34: Security Officer | D34: 0 | E34: 0
B35: 18:00 TO 06:00 MONDAY TO SUNDAY
B36: Security Officer | D36: 1 | E36: 1
B37: Handheld Metal Detector(s) | G37: 3
A39: 6.1.5 | B39: DITSOBOTLA
B40: 06:00 TO 18:00 MONDAY TO FRIDAY
A41: Area 3 | B41: Security Officer | D41: 1 | E41: 3
B42: 06:00 TO 18:00 SATURDAY AND SUNDAY/PUBLIC HOLIDAY
B43: Security Officer | D43: 0 | E43: 0
B44: 18:00 TO 06:00 MONDAY TO SUNDAY
B45: Security Officer | D45: 1 | E45: 1
B46: Handheld Metal Detector(s) | G46: 3
A48: 6.1.6 | B48: KLERKSDORP
B49: 06:00 TO 18:00 MONDAY TO FRIDAY
A50: Area 3 | B50: Security Officer | D50: 1 | E50: 4 | H50: 1
B51: 06:00 TO 18:00 SATURDAY AND SUNDAY/PUBLIC HOLIDAY
B52: Security Officer | D52: 0 | E52: 0
B53: 18:00 TO 06:00 MONDAY TO SUNDAY
B54: Security Officer | D54: 1 | E54: 2
B55: Handheld Metal Detector(s) | G55: 4
A57: 6.1.7 | B57: BAFOKENG
B58: 06:00 TO 18:00 MONDAY TO FRIDAY
A59: Area 3 | B59: Security Officer | D59: 1 | E59: 4 | H59: 1
B60: 06:00 TO 18:00 SATURDAY AND SUNDAY/PUBLIC HOLIDAY
B61: Security Officer | D61: 0 | E61: 0
B62: 18:00 TO 06:00 MONDAY TO SUNDAY
B63: Security Officer | D63: 1 | E63: 1
B64: Handheld Metal Detector(s) | G64: 4
A66: 6.1.8 | B66: MANKWE
B67: 06:00 TO 18:00 MONDAY TO FRIDAY
A68: Area 3 | B68: Security Officer | D68: 1 | E68: 4 | H68: 2
B69: 06:00 TO 18:00 SATURDAY AND SUNDAY/PUBLIC HOLIDAY
B70: Security Officer | D70: 0 | E70: 0
B71: 18:00 TO 06:00 MONDAY TO SUNDAY
B72: Security Officer | D72: 1 | E72: 1
B73: Handheld Metal Detector(s) | G73: 5
A75: 6.1.9 | B75: MORETELE / THEMBA
B76: 06:00 TO 18:00 MONDAY TO FRIDAY
A77: Area 3 | B77: Security Officer | D77: 1 | E77: 5 | H77: 1
B78: 06:00 TO 18:00 SATURDAY AND SUNDAY/PUBLIC HOLIDAY
B79: Security Officer | D79: 0 | E79: 0
B80: 18:00 TO 06:00 MONDAY TO SUNDAY
B81: Security Officer | D81: 1 | E81: 2
B82: Handheld Metal Detector(s) | G82: 5
A84: 6.1.10 | B84: ODI
B85: 06:00 TO 18:00 MONDAY TO FRIDAY
A86: Area 3 | B86: Security Officer | D86: 1 | E86: 5 | H86: 1
B87: 06:00 TO 18:00 SATURDAY AND SUNDAY/PUBLIC HOLIDAY
B88: Security Officer | D88: 0 | E88: 0
B89: 18:00 TO 06:00 MONDAY TO SUNDAY
B90: Security Officer | D90: 1 | E90: 2
B91: Handheld Metal Detector(s) | G91: 5
A93: 6.1.11 | B93: BLOEMHOF
B94: 06:00 TO 18:00 MONDAY TO FRIDAY
A95: Area 3 | B95: Security Officer | D95: 1 | E95: 2
B96: 06:00 TO 18:00 SATURDAY AND SUNDAY/PUBLIC HOLIDAY
B97: Security Officer | D97: 0 | E97: 0
B98: 18:00 TO 06:00 MONDAY TO SUNDAY
B99: Security Officer | D99: 1 | E99: 1
B100: Handheld Metal Detector(s) | G100: 3
A102: 6.1.12 | B102: CHRISTIANA
B103: 06:00 TO 18:00 MONDAY TO FRIDAY
A104: Area 3 | B104: Security Officer | D104: 1 | E104: 2
B105: 06:00 TO 18:00 SATURDAY AND SUNDAY/PUBLIC HOLIDAY
B106: Security Officer | D106: 0 | E106: 0
B107: 18:00 TO 06:00 MONDAY TO SUNDAY
B108: Security Officer | D108: 1 | E108: 1
B109: Handheld Metal Detector(s) | G109: 3
A111: 6.1.13 | B111: SCHWEIZER-RENEKE
B112: 06:00 TO 18:00 MONDAY TO FRIDAY
A113: Area 3 | B113: Security Officer | D113: 1 | E113: 2
B114: 06:00 TO 18:00 SATURDAY AND SUNDAY/PUBLIC HOLIDAY
B115: Security Officer | D115: 0 | E115: 0
B116: 18:00 TO 06:00 MONDAY TO SUNDAY
B117: Security Officer | D117: 1 | E117: 1
B118: Handheld Metal Detector(s) | G118: 3
A120: 6.1.14 | B120: WOLMARANSTAD
B121: 06:00 TO 18:00 MONDAY TO FRIDAY
A122: Area 3 | B122: Security Officer | D122: 1 | E122: 2
B123: 06:00 TO 18:00 SATURDAY AND SUNDAY/PUBLIC HOLIDAY
B124: Security Officer | D124: 0 | E124: 0
B125: 18:00 TO 06:00 MONDAY TO SUNDAY
B126: Security Officer | D126: 1 | E126: 1
B127: Handheld Metal Detector(s) | G127: 3
A129: 6.1.15 | B129: VRYBURG
B130: 06:00 TO 18:00 MONDAY TO FRIDAY
A131: Area 3 | B131: Security Officer | D131: 1 | E131: 3 | H131: 2
B132: 06:00 TO 18:00 SATURDAY AND SUNDAY/PUBLIC HOLIDAY
B133: Security Officer | D133: 0 | E133: 0
B134: 18:00 TO 06:00 MONDAY TO SUNDAY
B135: Security Officer | D135: 1 | E135: 2
B136: Handheld Metal Detector(s) | G136: 4
A138: 6.1.16 | B138: ATAMELANG
B139: 06:00 TO 18:00 MONDAY TO FRIDAY
A140: Area 3 | B140: Security Officer | D140: 1 | E140: 2
B141: 06:00 TO 18:00 SATURDAY AND SUNDAY/PUBLIC HOLIDAY
B142: Security Officer | D142: 0 | E142: 0
B143: 18:00 TO 06:00 MONDAY TO SUNDAY
B144: Security Officer | D144: 1 | E144: 1
B145: Handheld Metal Detector(s) | G145: 3
A147: 6.1.17 | B147: RUSTENBURG
B148: 06:00 TO 18:00 MONDAY TO FRIDAY
A149: Area 3 | B149: Security Officer | D149: 1 | E149: 4 | H149: 1
B150: 06:00 TO 18:00 SATURDAY AND SUNDAY/PUBLIC HOLIDAY
B151: Security Officer | D151: 0 | E151: 0
B152: 18:00 TO 06:00 MONDAY TO SUNDAY
B153: Security Officer | D153: 1 | E153: 2
B154: Handheld Metal Detector(s) | G154: 3
A156: 6.1.18 | B156: BRITS: JERICHO PERIODICAL COURT
B157: 06:00 TO 18:00 MONDAY TO FRIDAY
A158: Area 3 | B158: Security Officer | D158: 1 | E158: 1
B159: 06:00 TO 18:00 SATURDAY AND SUNDAY/PUBLIC HOLIDAY
B160: Security Officer | D160: 0 | E160: 0
B161: 18:00 TO 06:00 MONDAY TO SUNDAY
B162: Security Officer | D162: 1 | E162: 1
B163: Handheld Metal Detector(s) | G163: 2
A165: 6.1.19 | B165: MMAKAU PERIODICAL COURT
B166: 06:00 TO 18:00 MONDAY TO FRIDAY
A167: Area 3 | B167: Security Officer | D167: 1 | E167: 1
B168: 06:00 TO 18:00 SATURDAY AND SUNDAY/PUBLIC HOLIDAY
B169: Security Officer | D169: 0 | E169: 0
B170: 18:00 TO 06:00 MONDAY TO SUNDAY
B171: Security Officer | D171: 1 | E171: 1
B172: Handheld Metal Detector(s) | G172: 2
A174: 6.1.20 | B174: WOLMARANSTAD: LEEUDORINGSTAD PERIODICAL COURT
B175: 06:00 TO 18:00 MONDAY TO FRIDAY
A176: Area 3 | B176: Security Officer | D176: 1 | E176: 1
B177: 06:00 TO 18:00 SATURDAY AND SUNDAY/PUBLIC HOLIDAY
B178: Security Officer | D178: 0 | E178: 0
B179: 18:00 TO 06:00 MONDAY TO SUNDAY
B180: Security Officer | D180: 1 | E180: 1
B181: Handheld Metal Detector(s) | G181: 2
A183: 6.1.21 | B183: WOLMARANSTAD: MAKWASSIE PERIODICAL COURT
B184: 06:00 TO 18:00 MONDAY TO FRIDAY
A185: Area 3 | B185: Security Officer | D185: 1 | E185: 1
B186: 06:00 TO 18:00 SATURDAY AND SUNDAY/PUBLIC HOLIDAY
B187: Security Officer | D187: 0 | E187: 0
B188: 18:00 TO 06:00 MONDAY TO SUNDAY
B189: Security Officer | D189: 1 | E189: 1
B190: Handheld Metal Detector(s) | G190: 2
A192: 6.1.22 | B192: ORKNEY
B193: 06:00 TO 18:00 MONDAY TO FRIDAY
A194: Area 3 | B194: Security Officer | D194: 1 | E194: 2
B195: 06:00 TO 18:00 SATURDAY AND SUNDAY/PUBLIC HOLIDAY
B196: Security Officer | D196: 0 | E196: 0
B197: 18:00 TO 06:00 MONDAY TO SUNDAY
B198: Security Officer | D198: 1 | E198: 1
B199: Handheld Metal Detector(s) | G199: 3
A201: 6.1.23 | B201: STILFONTEIN
B202: 06:00 TO 18:00 MONDAY TO FRIDAY
A203: Area 3 | B203: Security Officer | D203: 1 | E203: 2
B204: 06:00 TO 18:00 SATURDAY AND SUNDAY/PUBLIC HOLIDAY
B205: Security Officer | D205: 0 | E205: 0
B206: 18:00 TO 06:00 MONDAY TO SUNDAY
B207: Security Officer | D207: 1 | E207: 1
B208: Handheld Metal Detector(s) | G208: 3
A210: 6.1.24 | B210: MOLOPO: MAKGOBISTAD PERIODICAL COURT
B211: 06:00 TO 18:00 MONDAY TO FRIDAY
A212: Area 3 | B212: Security Officer | D212: 1 | E212: 1
B213: 06:00 TO 18:00 SATURDAY AND SUNDAY/PUBLIC HOLIDAY
B214: Security Officer | D214: 0 | E214: 0
B215: 18:00 TO 06:00 MONDAY TO SUNDAY
B216: Security Officer | D216: 1 | E216: 1
B217: Handheld Metal Detector(s) | G217: 2
A219: 6.1.25 | B219: GANYESA: MOROKWENG PERIODICAL COURT
B220: 06:00 TO 18:00 MONDAY TO FRIDAY
A221: Area 3 | B221: Security Officer | D221: 1 | E221: 1
B222: 06:00 TO 18:00 SATURDAY AND SUNDAY/PUBLIC HOLIDAY
B223: Security Officer | D223: 0 | E223: 0
B224: 18:00 TO 06:00 MONDAY TO SUNDAY
... 228 more rows

Sheet Free State
B1: RFB 2021 __ FS
A2: Item no | B2: FREE STATE | C2: Grade B | D2: Grade C Armed | E2: Grade C Unarmed | F2: Control Room CCTV | G2: Hand Held Metaldetector(s)
A3: 7.1.1 | B3: SHARED COURT SERVICE CENTRE, FREE STATE
B4: 06:00 TO 18:00 MONDAY TO FRIDAY
A5: Area 1 | B5: Security Officer | D5: 1 | E5: 3 | F5: 0
B6: 06:00 TO 18:00 SATURDAY AND SUNDAY/PUBLIC HOLIDAY
B7: Security Officer | D7: 0 | E7: 0 | F7: 0
B8: 18:00 TO 06:00 MONDAY TO SUNDAY
B9: Security Officer | D9: 1 | E9: 1 | F9: 0
B10: Handheld Metal Detector(s) | G10: 3
A12: 7.1.2 | B12: APPEAL COURT: BLOEMFONTEIN
B13: 06:00 TO 18:00 MONDAY TO FRIDAY
A14: Area 1 | B14: Security Officer | D14: 1 | E14: 5 | H14: 2
B15: 06:00 TO 18:00 SATURDAY AND SUNDAY/PUBLIC HOLIDAY
B16: Security Officer | D16: 0 | E16: 0
B17: 18:00 TO 06:00 MONDAY TO SUNDAY
B18: Security Officer | D18: 1 | E18: 1
B19: Handheld Metal Detector(s) | G19: 3
A21: 7.1.3 | B21: REGISTRAR OF THE HIGH COURT: BLOEMFONTEIN
B22: 06:00 TO 18:00 MONDAY TO FRIDAY
A23: Area 1 | B23: Security Officer | D23: 1 | E23: 4
B24: 06:00 TO 18:00 SATURDAY AND SUNDAY/PUBLIC HOLIDAY
B25: Security Officer | D25: 0 | E25: 0
B26: 18:00 TO 06:00 MONDAY TO SUNDAY
B27: Security Officer | D27: 1 | E27: 1
B28: Handheld Metal Detector(s) | G28: 3
A30: 7.1.4 | B30: BLOEMFONTEIN (MAIN COURT)
B31: 06:00 TO 18:00 MONDAY TO FRIDAY
A32: Area 1 | B32: Security Officer | D32: 1 | E32: 6 | F32: 0 | H32: 1
B33: 06:00 TO 18:00 SATURDAY AND SUNDAY/PUBLIC HOLIDAY
B34: Security Officer | D34: 0 | E34: 0 | F34: 0
B35: 18:00 TO 06:00 MONDAY TO SUNDAY
B36: Security Officer | D36: 1 | E36: 1 | F36: 0
B37: Handheld Metal Detector(s) | G37: 6
A39: 7.1.5 | B39: BOTSHABELO
B40: 06:00 TO 18:00 MONDAY TO FRIDAY
A41: Area 3 | B41: Security Officer | D41: 1 | E41: 3 | F41: 0
B42: 06:00 TO 18:00 SATURDAY AND SUNDAY/PUBLIC HOLIDAY
B43: Security Officer | D43: 0 | E43: 0 | F43: 0
B44: 18:00 TO 06:00 MONDAY TO SUNDAY
B45: Security Officer | D45: 1 | E45: 1 | F45: 0
B46: Handheld Metal Detector(s) | G46: 3
A48: 7.1.6 | B48: BETHULE
B49: 06:00 TO 18:00 MONDAY TO FRIDAY
A50: Area 3 | B50: Security Officer | D50: 1 | E50: 2 | F50: 0
B51: 06:00 TO 18:00 SATURDAY AND SUNDAY/PUBLIC HOLIDAY
B52: Security Officer | D52: 0 | E52: 0 | F52: 0
B53: 18:00 TO 06:00 MONDAY TO SUNDAY
B54: Security Officer | D54: 1 | E54: 1 | F54: 0
B55: Handheld Metal Detector(s) | G55: 3
A57: 7.1.7 | B57: ROUXVILLE
B58: 06:00 TO 18:00 MONDAY TO FRIDAY
A59: Area 3 | B59: Security Officer | D59: 1 | E59: 2 | F59: 0
B60: 06:00 TO 18:00 SATURDAY AND SUNDAY/PUBLIC HOLIDAY
B61: Security Officer | D61: 0 | E61: 0 | F61: 0
B62: 18:00 TO 06:00 MONDAY TO SUNDAY
B63: Security Officer | D63: 1 | E63: 1 | F63: 0
B64: Handheld Metal Detector(s) | G64: 3
A66: 7.1.8 | B66: BOSHOF
B67: 06:00 TO 18:00 MONDAY TO FRIDAY
A68: Area 3 | B68: Security Officer | D68: 1 | E68: 2 | F68: 0
B69: 06:00 TO 18:00 SATURDAY AND SUNDAY/PUBLIC HOLIDAY
B70: Security Officer | D70: 0 | E70: 0 | F70: 0
B71: 18:00 TO 06:00 MONDAY TO SUNDAY
B72: Security Officer | D72: 1 | E72: 1 | F72: 0
B73: Handheld Metal Detector(s) | G73: 3
A75: 7.1.9 | B75: THABA-NCHU
B76: 06:00 TO 18:00 MONDAY TO FRIDAY
A77: Area 3 | B77: Security Officer | D77: 1 | E77: 4 | F77: 0 | H77: 1
B78: 06:00 TO 18:00 SATURDAY AND SUNDAY/PUBLIC HOLIDAY
B79: Security Officer | D79: 0 | E79: 0 | F79: 0
B80: 18:00 TO 06:00 MONDAY TO SUNDAY
B81: Security Officer | D81: 1 | E81: 1 | F81: 0
B82: Handheld Metal Detector(s) | G82: 5
A84: 7.1.10 | B84: MASTER OF THE HIGH COURT: BLOEMFONTEIN
B85: 06:00 TO 18:00 MONDAY TO FRIDAY
A86: Area 1 | B86: Security Officer | D86: 1 | E86: 3 | F86: 0
B87: 06:00 TO 18:00 SATURDAY AND SUNDAY/PUBLIC HOLIDAY
B88: Security Officer | D88: 0 | E88: 0 | F88: 0
B89: 18:00 TO 06:00 MONDAY TO SUNDAY
B90: Security Officer | D90: 1 | E90: 1 | F90: 0
B91: Handheld Metal Detector(s) | G91: 3
A93: 7.1.11 | B93: BUILTFONTEIN
B94: 06:00 TO 18:00 MONDAY TO FRIDAY
A95: Area 3 | B95: Security Officer | D95: 1 | E95: 2 | F95: 0
B96: 06:00 TO 18:00 SATURDAY AND SUNDAY/PUBLIC HOLIDAY
B97: Security Officer | D97: 0 | E97: 0 | F97: 0
B98: 18:00 TO 06:00 MONDAY TO SUNDAY
B99: Security Officer | D99: 1 | E99: 1 | F99: 0
B100: Handheld Metal Detector(s) | G100: 3
A102: 7.1.12 | B102: PETRUSBURG
B103: 06:00 TO 18:00 MONDAY TO FRIDAY
A104: Area 3 | B104: Security Officer | D104: 1 | E104: 2 | F104: 0
B105: 06:00 TO 18:00 SATURDAY AND SUNDAY/PUBLIC HOLIDAY
B106: Security Officer | D106: 0 | E106: 0 | F106: 0
B107: 18:00 TO 06:00 MONDAY TO SUNDAY
B108: Security Officer | D108: 1 | E108: 1 | F108: 0
B109: Handheld Metal Detector(s) | G109: 3
A111: 7.1.13 | B111: THEUNISSEN
B112: 06:00 TO 18:00 MONDAY TO FRIDAY
A113: Area 3 | B113: Security Officer | D113: 1 | E113: 2 | F113: 0
B114: 06:00 TO 18:00 SATURDAY AND SUNDAY/PUBLIC HOLIDAY
B115: Security Officer | D115: 0 | E115: 0 | F115: 0
B116: 18:00 TO 06:00 MONDAY TO SUNDAY
B117: Security Officer | D117: 1 | E117: 1 | F117: 0
B118: Handheld Metal Detector(s) | G118: 3
A120: 7.1.14 | B120: ZASTRON
B121: 06:00 TO 18:00 MONDAY TO FRIDAY
A122: Area 3 | B122: Security Officer | D122: 1 | E122: 2 | F122: 0
B123: 06:00 TO 18:00 SATURDAY AND SUNDAY/PUBLIC HOLIDAY
B124: Security Officer | D124: 0 | E124: 0 | F124: 0
B125: 18:00 TO 06:00 MONDAY TO SUNDAY
B126: Security Officer | D126: 1 | E126: 1 | F126: 0
B127: Handheld Metal Detector(s) | G127: 3
A129: 7.1.15 | B129: LADYBRAND
B130: 06:00 TO 18:00 MONDAY TO FRIDAY
A131: Area 3 | B131: Security Officer | D131: 1 | E131: 3 | F131: 0
B132: 06:00 TO 18:00 SATURDAY AND SUNDAY/PUBLIC HOLIDAY
B133: Security Officer | D133: 0 | E133: 0 | F133: 0
B134: 18:00 TO 06:00 MONDAY TO SUNDAY
B135: Security Officer | D135: 1 | E135: 1 | F135: 0
B136: Handheld Metal Detector(s) | G136: 3
A138: 7.1.16 | B138: FAURESMITH
B139: 06:00 TO 18:00 MONDAY TO FRIDAY
A140: Area 3 | B140: Security Officer | D140: 1 | E140: 2 | F140: 0
B141: 06:00 TO 18:00 SATURDAY AND SUNDAY/PUBLIC HOLIDAY
B142: Security Officer | D142: 0 | E142: 0 | F142: 0
B143: 18:00 TO 06:00 MONDAY TO SUNDAY
B144: Security Officer | D144: 1 | E144: 1 | F144: 0
B145: Handheld Metal Detector(s) | G145: 3
A147: 7.1.17 | B147: EDENBURG
B148: 06:00 TO 18:00 MONDAY TO FRIDAY
A149: Area 3 | B149: Security Officer | D149: 1 | E149: 3 | F149: 0
B150: 06:00 TO 18:00 SATURDAY AND SUNDAY/PUBLIC HOLIDAY
B151: Security Officer | D151: 0 | E151: 0 | F151: 0
B152: 18:00 TO 06:00 MONDAY TO SUNDAY
B153: Security Officer | D153: 1 | E153: 1 | F153: 0
B154: Handheld Metal Detector(s) | G154: 3
A156: 7.1.18 | B156: ODENDAALRUS
B157: 06:00 TO 18:00 MONDAY TO FRIDAY
A158: Area 3 | B158: Security Officer | D158: 1 | E158: 3 | F158: 0 | H158: 1
B159: 06:00 TO 18:00 SATURDAY AND SUNDAY/PUBLIC HOLIDAY
B160: Security Officer | D160: 0 | E160: 0 | F160: 0
B161: 18:00 TO 06:00 MONDAY TO SUNDAY
B162: Security Officer | D162: 1 | E162: 1 | F162: 0
B163: Handheld Metal Detector(s) | G163: 4
A165: 7.1.19 | B165: DOMESTIC VIOLENT COURT: BLOEMFONTEIN
B166: 06:00 TO 18:00 MONDAY TO FRIDAY
A167: Area 1 | B167: Security Officer | D167: 1 | E167: 2 | F167: 0
B168: 06:00 TO 18:00 SATURDAY AND SUNDAY/PUBLIC HOLIDAY
B169: Security Officer | D169: 0 | E169: 0 | F169: 0
B170: 18:00 TO 06:00 MONDAY TO SUNDAY
B171: Security Officer | D171: 1 | E171: 1 | F171: 0
B172: Handheld Metal Detector(s) | G172: 3
A174: 7.1.20 | B174: BATHO (BLOEMFONTEIN)
B175: 06:00 TO 18:00 MONDAY TO FRIDAY
A176: Area 1 | B176: Security Officer | D176: 1 | E176: 2 | F176: 0
B177: 06:00 TO 18:00 SATURDAY AND SUNDAY/PUBLIC HOLIDAY
B178: Security Officer | D178: 0 | E178: 0 | F178: 0
B179: 18:00 TO 06:00 MONDAY TO SUNDAY
B180: Security Officer | D180: 1 | E180: 1 | F180: 0
B181: Handheld Metal Detector(s) | G181: 3
A183: 7.1.21 | B183: CLOCOLAN
B184: 06:00 TO 18:00 MONDAY TO FRIDAY
A185: Area 3 | B185: Security Officer | D185: 1 | E185: 2 | F185: 0
B186: 06:00 TO 18:00 SATURDAY AND SUNDAY/PUBLIC HOLIDAY
B187: Security Officer | D187: 0 | E187: 0 | F187: 0
B188: 18:00 TO 06:00 MONDAY TO SUNDAY
B189: Security Officer | D189: 1 | E189: 1 | F189: 0
B190: Handheld Metal Detector(s) | G190: 3
A192: 7.1.22 | B192: EXCELSIOR
B193: 06:00 TO 18:00 MONDAY TO FRIDAY
A194: Area 3 | B194: Security Officer | D194: 1 | E194: 2 | F194: 0
B195: 06:00 TO 18:00 SATURDAY AND SUNDAY/PUBLIC HOLIDAY
B196: Security Officer | D196: 0 | E196: 0 | F196: 0
B197: 18:00 TO 06:00 MONDAY TO SUNDAY
B198: Security Officer | D198: 1 | E198: 1 | F198: 0
B199: Handheld Metal Detector(s) | G199: 3
A201: 7.1.23 | B201: HOOPSTAD
B202: 06:00 TO 18:00 MONDAY TO FRIDAY
A203: Area 3 | B203: Security Officer | D203: 1 | E203: 2 | F203: 0
B204: 06:00 TO 18:00 SATURDAY AND SUNDAY/PUBLIC HOLIDAY
B205: Security Officer | D205: 0 | E205: 0 | F205: 0
B206: 18:00 TO 06:00 MONDAY TO SUNDAY
B207: Security Officer | D207: 1 | E207: 1 | F207: 0
B208: Handheld Metal Detector(s) | G208: 3
A210: 7.1.24 | B210: WEPENER
B211: 06:00 TO 18:00 MONDAY TO FRIDAY
A212: Area 3 | B212: Security Officer | D212: 1 | E212: 2 | F212: 0
B213: 06:00 TO 18:00 SATURDAY AND SUNDAY/PUBLIC HOLIDAY
B214: Security Officer | D214: 0 | E214: 0 | F214: 0
B215: 18:00 TO 06:00 MONDAY TO SUNDAY
B216: Security Officer | D216: 1 | E216: 1 | F216: 0
B217: Handheld Metal Detector(s) | G217: 3
A219: 7.1.25 | B219: WESSELSBRON
B220: 06:00 TO 18:00 MONDAY TO FRIDAY
A221: Area 3 | B221: Security Officer | D221: 1 | E221: 2 | F221: 0
B222: 06:00 TO 18:00 SATURDAY AND SUNDAY/PUBLIC HOLIDAY
B223: Security Officer | D223: 0 | E223: 0 | F223: 0
B224: 18:00 TO 06:00 MONDAY TO SUNDAY
... 484 more rows

Sheet Northern Cape
B1: RFB 2021 12 NC
A2: Item no | B2: NORTHERN CAPE | C2: Grade B | D2: Grade C Armed | E2: Grade C Unarmed | F2: Control Room CCTV | G2: Hand Held Metaldetector(s)
A3: 8.1.1 | B3: BARKLY WEST
B4: 06:00 TO 18:00 MONDAY TO FRIDAY
A5: Area 3 | B5: Security Officer | C5: 0 | D5: 1 | E5: 3
B6: 06:00 TO 18:00 SATURDAY AND SUNDAY/PUBLIC HOLIDAY
B7: Security Officer | C7: 0 | D7: 0 | E7: 0
B8: 18:00 TO 06:00 MONDAY TO SUNDAY
B9: Security Officer | C9: 0 | D9: 1 | E9: 1
B10: Handheld Metal Detector(s) Guards to be posted at Periodical court Delportshoop and Winsorton | G10: 3
A12: 8.1.2 | B12: BRITSTOWN
B13: 06:00 TO 18:00 MONDAY TO FRIDAY
A14: Area 3 | B14: Security Officer | C14: 0 | D14: 0 | E14: 2
B15: 06:00 TO 18:00 SATURDAY AND SUNDAY/PUBLIC HOLIDAY
B16: Security Officer | C16: 0 | D16: 0 | E16: 0
B17: 18:00 TO 06:00 MONDAY TO SUNDAY
B18: Security Officer | C18: 0 | D18: 0 | E18: 1
B19: Handheld Metal Detector(s) | G19: 2
A21: 8.1.3 | B21: COLESBERG
B22: 06:00 TO 18:00 MONDAY TO FRIDAY
A23: Area 3 | B23: Security Officer | C23: 0 | D23: 1 | E23: 3
B24: 06:00 TO 18:00 SATURDAY AND SUNDAY/PUBLIC HOLIDAY
B25: Security Officer | C25: 0 | D25: 0 | E25: 0
B26: 18:00 TO 06:00 MONDAY TO SUNDAY
B27: Security Officer | C27: 0 | D27: 1 | E27: 1
B28: Handheld Metal Detector(s) | G28: 3
A30: 8.1.4 | B30: DE AAR
B31: 06:00 TO 18:00 MONDAY TO FRIDAY
A32: Area 3 | B32: Security Officer | C32: 0 | D32: 1 | E32: 2
B33: 06:00 TO 18:00 SATURDAY AND SUNDAY/PUBLIC HOLIDAY
B34: Security Officer | C34: 0 | D34: 0 | E34: 0
B35: 18:00 TO 06:00 MONDAY TO SUNDAY
B36: Security Officer | C36: 0 | D36: 1 | E36: 1
B37: Handheld Metal Detector(s) | G37: 3
A39: 8.1.5 | B39: DE AAR HOUSING IN DE AAR
B40: 06:00 TO 18:00 MONDAY TO FRIDAY
A41: Area 3 | B41: Security Officer | C41: 0 | D41: 0 | E41: 2
B42: 06:00 TO 18:00 SATURDAY AND SUNDAY/PUBLIC HOLIDAY
B43: Security Officer | C43: 0 | D43: 0 | E43: 0
B44: 18:00 TO 06:00 MONDAY TO SUNDAY
B45: Security Officer | C45: 0 | D45: 0 | E45: 1
B46: Handheld Metal Detector(s) | G46: 3
A48: 8.1.6 | B48: DOUGLAS
B49: 06:00 TO 18:00 MONDAY TO FRIDAY
A50: Area 3 | B50: Security Officer | C50: 0 | D50: 1 | E50: 2
B51: 06:00 TO 18:00 SATURDAY AND SUNDAY/PUBLIC HOLIDAY
B52: Security Officer | C52: 0 | D52: 0 | E52: 0
B53: 18:00 TO 06:00 MONDAY TO SUNDAY
B54: Security Officer | C54: 0 | D54: 1 | E54: 1
B55: Handheld Metal Detector(s) | G55: 3
A57: 8.1.7 | B57: FAMILY LAW CENTRE: KIMBERLEY
B58: 06:00 TO 18:00 MONDAY TO FRIDAY
A59: Area 1 | B59: Security Officer | C59: 0 | D59: 0 | E59: 3
B60: 06:00 TO 18:00 SATURDAY AND SUNDAY/PUBLIC HOLIDAY
B61: Security Officer | C61: 0 | D61: 0 | E61: 0
B62: 18:00 TO 06:00 MONDAY TO SUNDAY
B63: Security Officer | C63: 0 | D63: 1 | E63: 1
B64: Handheld Metal Detector(s) | G64: 3
A66: 8.1.8 | B66: FAMILY ADVOCATE: KIMBERLEY
B67: 06:00 TO 18:00 MONDAY TO FRIDAY
A68: Area 1 | B68: Security Officer | C68: 0 | D68: 0 | E68: 3
B69: 06:00 TO 18:00 SATURDAY AND SUNDAY/PUBLIC HOLIDAY
B70: Security Officer | C70: 0 | D70: 0 | E70: 0
B71: 18:00 TO 06:00 MONDAY TO SUNDAY
B72: Security Officer | C72: 0 | D72: 0 | E72: 1
B73: Handheld Metal Detector(s) | G73: 3
A75: 8.1.9 | B75: GALESHEWE BRANCH COURT
B76: 06:00 TO 18:00 MONDAY TO FRIDAY
A77: Area 1 | B77: Security Officer | C77: 0 | D77: 1 | E77: 4 | H77: 1
B78: 06:00 TO 18:00 SATURDAY AND SUNDAY/PUBLIC HOLIDAY
B79: Security Officer | C79: 0 | D79: 0 | E79: 0
B80: 18:00 TO 06:00 MONDAY TO SUNDAY
B81: Security Officer | C81: 0 | D81: 1 | E81: 1
B82: Handheld Metal Detector(s) | G82: 3
A84: 8.1.10 | B84: HANOVER
B85: 06:00 TO 18:00 MONDAY TO FRIDAY
A86: Area 3 | B86: Security Officer | C86: 0 | D86: 0 | E86: 2
B87: 06:00 TO 18:00 SATURDAY AND SUNDAY/PUBLIC HOLIDAY
B88: Security Officer | C88: 0 | D88: 0 | E88: 0
B89: 18:00 TO 06:00 MONDAY TO SUNDAY
B90: Security Officer | C90: 0 | D90: 0 | E90: 1
B91: Handheld Metal Detector(s) | G91: 3
A93: 8.1.11 | B93: HARTSWATER
B94: 06:00 TO 18:00 MONDAY TO FRIDAY
A95: Area 3 | B95: Security Officer | C95: 0 | D95: 0 | E95: 3
B96: 06:00 TO 18:00 SATURDAY AND SUNDAY/PUBLIC HOLIDAY
B97: Security Officer | C97: 0 | D97: 0 | E97: 0
B98: 18:00 TO 06:00 MONDAY TO SUNDAY
B99: Security Officer | C99: 0 | D99: 0 | E99: 2
B100: Handheld Metal Detector(s) | G100: 3
A102: 8.1.12 | B102: HOPETOWN
B103: 06:00 TO 18:00 MONDAY TO FRIDAY
A104: Area 3 | B104: Security Officer | C104: 0 | D104: 0 | E104: 4
B105: 06:00 TO 18:00 SATURDAY AND SUNDAY/PUBLIC HOLIDAY
B106: Security Officer | C106: 0 | D106: 0 | E106: 0
B107: 18:00 TO 06:00 MONDAY TO SUNDAY
B108: Security Officer | C108: 0 | D108: 1 | E108: 0
B109: Handheld Metal Detector(s) Guards to be posted at Periodical court Strydenburg | G109: 3
A111: 8.1.13 | B111: JANKEMPDORP
B112: 06:00 TO 18:00 MONDAY TO FRIDAY
A113: Area 3 | B113: Security Officer | C113: 0 | E113: 3
B114: 06:00 TO 18:00 SATURDAY AND SUNDAY/PUBLIC HOLIDAY
B115: Security Officer | C115: 0 | E115: 0
B116: 18:00 TO 06:00 MONDAY TO SUNDAY
B117: Security Officer | C117: 0 | E117: 1
B118: Handheld Metal Detector(s) | G118: 3
A120: 8.1.14 | B120: KIMBERLEY
B121: 06:00 TO 18:00 MONDAY TO FRIDAY
A122: Area 1 | B122: Security Officer | C122: 0 | E122: 6 | H122: 2
B123: 06:00 TO 18:00 SATURDAY AND SUNDAY/PUBLIC HOLIDAY
B124: Security Officer | C124: 0 | D124: 0 | E124: 0
B125: 18:00 TO 06:00 MONDAY TO SUNDAY
B126: Security Officer | C126: 0 | D126: 1 | E126: 2
B127: Handheld Metal Detector(s) | G127: 5
A129: 8.1.15 | B129: NOUPOORT
B130: 06:00 TO 18:00 MONDAY TO FRIDAY
A131: Area 3 | B131: Security Officer | C131: 0 | E131: 3
B132: 06:00 TO 18:00 SATURDAY AND SUNDAY/PUBLIC HOLIDAY
B133: Security Officer | C133: 0 | E133: 0
B134: 18:00 TO 06:00 MONDAY TO SUNDAY
B135: Security Officer | C135: 0 | E135: 1
B136: Handheld Metal Detector(s) | G136: 3
A138: 8.1.16 | B138: PHILLIPSTOWN
B139: 06:00 TO 18:00 MONDAY TO FRIDAY
A140: Area 3 | B140: Security Officer | C140: 0 | E140: 3
B141: 06:00 TO 18:00 SATURDAY AND SUNDAY/PUBLIC HOLIDAY
B142: Security Officer | C142: 0 | E142: 0
B143: 18:00 TO 06:00 MONDAY TO SUNDAY
B144: Security Officer | C144: 0 | E144: 1
B145: Handheld Metal Detector(s) Guards to be posted at Periodical court Petrusville | G145: 3
A147: 8.1.17 | B147: REGISTRAR OF HIGH COURT: KIMBERLEY
B148: 06:00 TO 18:00 MONDAY TO FRIDAY
A149: Area 1 | B149: Security Officer | C149: 0 | D149: 1 | E149: 4 | H149: 1
B150: 06:00 TO 18:00 SATURDAY AND SUNDAY/PUBLIC HOLIDAY
B151: Security Officer | C151: 0 | D151: 0 | E151: 0
B152: 18:00 TO 06:00 MONDAY TO SUNDAY
B153: Security Officer | C153: 0 | D153: 1 | E153: 1
B154: Handheld Metal Detector(s) | G154: 3
A156: 8.1.18 | B156: RICHMOND
B157: 06:00 TO 18:00 MONDAY TO FRIDAY
A158: Area 3 | B158: Security Officer | C158: 0 | E158: 2
B159: 06:00 TO 18:00 SATURDAY AND SUNDAY/PUBLIC HOLIDAY
B160: Security Officer | C160: 0 | E160: 0
B161: 18:00 TO 06:00 MONDAY TO SUNDAY
B162: Security Officer | C162: 0 | E162: 1
B163: Handheld Metal Detector(s) | G163: 2
A165: 8.1.19 | B165: STATE ATTORNEYS: KIMBERLEY
B166: 06:00 TO 18:00 MONDAY TO FRIDAY
A167: Area 1 | B167: Security Officer | C167: 0 | E167: 2
B168: 06:00 TO 18:00 SATURDAY AND SUNDAY/PUBLIC HOLIDAY
B169: Security Officer | C169: 0 | E169: 0
B170: 18:00 TO 06:00 MONDAY TO SUNDAY
B171: Security Officer | C171: 0 | E171: 1
B172: Handheld Metal Detector(s) | G172: 2
A174: 8.1.20 | B174: WARRENTON
B175: 06:00 TO 18:00 MONDAY TO FRIDAY
A176: Area 3 | B176: Security Officer | C176: 0 | E176: 3
B177: 06:00 TO 18:00 SATURDAY AND SUNDAY/PUBLIC HOLIDAY
B178: Security Officer | C178: 0 | E178: 0
B179: 18:00 TO 06:00 MONDAY TO SUNDAY
B180: Security Officer | C180: 0 | E180: 2
B181: Handheld Metal Detector(s) | G181: 3
A183: 8.1.21 | B183: KATHU
B184: 06:00 TO 18:00 MONDAY TO FRIDAY
A185: Area 3 | B185: Security Officer | C185: 0 | D185: 1 | E185: 3
B186: 06:00 TO 18:00 SATURDAY AND SUNDAY/PUBLIC HOLIDAY
B187: Security Officer | C187: 0 | D187: 0 | E187: 0
B188: 18:00 TO 06:00 MONDAY TO SUNDAY
B189: Security Officer | C189: 0 | D189: 1 | E189: 1
B190: Handheld Metal Detector(s) Guards to be posted at Periodical court Deben | G190: 3
A192: 8.1.22 | B192: KURUMAN
B193: 06:00 TO 18:00 MONDAY TO FRIDAY
A194: Area 3 | B194: Security Officer | C194: 0 | D194: 1 | E194: 2
B195: 06:00 TO 18:00 SATURDAY AND SUNDAY/PUBLIC HOLIDAY
B196: Security Officer | C196: 0 | D196: 0 | E196: 0
B197: 18:00 TO 06:00 MONDAY TO SUNDAY
B198: Security Officer | C198: 0 | D198: 1 | E198: 1
B199: Handheld Metal Detector(s) Guards to be posted at Periodical court Tsineng | G199: 3
A201: 8.1.23 | B201: MASTER OF THE HIGH COURT: KIMBERLEY
B202: 06:00 TO 18:00 MONDAY TO FRIDAY
A203: Area 1 | B203: Security Officer | E203: 2
B204: 06:00 TO 18:00 SATURDAY AND SUNDAY/PUBLIC HOLIDAY
B205: Security Officer | C205: 0 | D205: 0 | E205: 0
B206: 18:00 TO 06:00 MONDAY TO SUNDAY
B207: Security Officer | C207: 0 | D207: 0 | E207: 0
B208: Handheld Metal Detector(s) | G208: 2
A210: 8.1.24 | B210: NPA: DPP KIMBERLEY
B211: 06:00 TO 18:00 MONDAY TO FRIDAY
A212: Area 1 | B212: Security Officer | C212: 0 | D212: 1 | E212: 3 | H212: 4
B213: 06:00 TO 18:00 SATURDAY AND SUNDAY/PUBLIC HOLIDAY
B214: Security Officer | C214: 0 | D214: 0 | E214: 0
B215: 18:00 TO 06:00 MONDAY TO SUNDAY
B216: Security Officer | C216: 0 | D216: 1 | E216: 2 | H216: 1
B217: Handheld Metal Detector(s) | G217: 3
A220: 8.1.25 | B220: NPA: THUTHUZELA CARE CENTRE: KIMBERLEY
B221: 06:00 TO 18:00 MONDAY TO FRIDAY
A222: Area 1 | B222: Security Officer | C222: 0 | D222: 1 | E222: 1
B223: 06:00 TO 18:00 SATURDAY AND SUNDAY/PUBLIC HOLIDAY
B224: Security Officer | C224: 0 | D224: 0 | E224: 0
B225: 18:00 TO 06:00 MONDAY TO SUNDAY
... 219 more rows

Sheet Mpumalanga
B1: RFB 2021 12 MP*
A2: Item no | B2: MPUMALANGA | C2: Grade B | D2: Grade C Armed | E2: Grade C Unarmed | F2: Control Room CCTV | G2: Hand Held Metaldetector(s)
A3: 9.1.1 | B3: AMERSFOORT
B4: 06:00 TO 18:00 MONDAY TO FRIDAY
A5: Area 3 | B5: Security Officer | D5: 1 | E5: 2
B6: 06:00 TO 18:00 SATURDAY AND SUNDAY/PUBLIC HOLIDAY
B7: Security Officer | D7: 0 | E7: 0
B8: 18:00 TO 06:00 MONDAY TO SUNDAY
B9: Security Officer | D9: 1 | E9: 1
B10: Handheld Metal Detector(s) | G10: 3
A12: 9.1.2 | B12: AMSTERDAM
B13: 06:00 TO 18:00 MONDAY TO FRIDAY
A14: Area 3 | B14: Security Officer | D14: 1 | E14: 2
B15: 06:00 TO 18:00 SATURDAY AND SUNDAY/PUBLIC HOLIDAY
B16: Security Officer | D16: 0 | E16: 0
B17: 18:00 TO 06:00 MONDAY TO SUNDAY
B18: Security Officer | D18: 1 | E18: 1
B19: Handheld Metal Detector(s) | G19: 3
A21: 9.1.3 | B21: BALFOUR
B22: 06:00 TO 18:00 MONDAY TO FRIDAY
A23: Area 3 | B23: Security Officer | D23: 1 | E23: 2
B24: 06:00 TO 18:00 SATURDAY AND SUNDAY/PUBLIC HOLIDAY
B25: Security Officer | D25: 0 | E25: 0
B26: 18:00 TO 06:00 MONDAY TO SUNDAY
B27: Security Officer | D27: 1 | E27: 1
B28: Handheld Metal Detector(s) | G28: 3
A30: 9.1.4 | B30: BELFAST
B31: 06:00 TO 18:00 MONDAY TO FRIDAY
A32: Area 3 | B32: Security Officer | D32: 1 | E32: 2
B33: 06:00 TO 18:00 SATURDAY AND SUNDAY/PUBLIC HOLIDAY
B34: Security Officer | D34: 0 | E34: 0
B35: 18:00 TO 06:00 MONDAY TO SUNDAY
B36: Security Officer | D36: 1 | E36: 1
B37: Handheld Metal Detector(s) | G37: 3
A39: 9.1.5 | B39: BETHAL
B40: 06:00 TO 18:00 MONDAY TO FRIDAY
A41: Area 3 | B41: Security Officer | D41: 1 | E41: 3
B42: 06:00 TO 18:00 SATURDAY AND SUNDAY/PUBLIC HOLIDAY
B43: Security Officer | D43: 0 | E43: 0
B44: 18:00 TO 06:00 MONDAY TO SUNDAY
B45: Security Officer | D45: 1 | E45: 1
B46: Handheld Metal Detector(s) | G46: 3
A48: 9.1.6 | B48: BREYTEN
B49: 06:00 TO 18:00 MONDAY TO FRIDAY
A50: Area 3 | B50: Security Officer | D50: 1 | E50: 2
B51: 06:00 TO 18:00 SATURDAY AND SUNDAY/PUBLIC HOLIDAY
B52: Security Officer | D52: 0 | E52: 0
B53: 18:00 TO 06:00 MONDAY TO SUNDAY
B54: Security Officer | D54: 1 | E54: 1
B55: Handheld Metal Detector(s) | G55: 3
A57: 9.1.7 | B57: CAROLINA
B58: 06:00 TO 18:00 MONDAY TO FRIDAY
A59: Area 3 | B59: Security Officer | D59: 1 | E59: 3 | H59: 1
B60: 06:00 TO 18:00 SATURDAY AND SUNDAY/PUBLIC HOLIDAY
B61: Security Officer | D61: 0 | E61: 0
B62: 18:00 TO 06:00 MONDAY TO SUNDAY
B63: Security Officer | D63: 1 | E63: 1
B64: Handheld Metal Detector(s) | G64: 3
A66: 9.1.8 | B66: DELMAS
B67: 06:00 TO 18:00 MONDAY TO FRIDAY
A68: Area 3 | B68: Security Officer | D68: 1 | E68: 4
B69: 06:00 TO 18:00 SATURDAY AND SUNDAY/PUBLIC HOLIDAY
B70: Security Officer | D70: 0 | E70: 0
B71: 18:00 TO 06:00 MONDAY TO SUNDAY
B72: Security Officer | D72: 1 | E72: 1
B73: Handheld Metal Detector(s) | G73: 3
A75: 9.1.9 | B75: EERSTEHOEK
B76: 06:00 TO 18:00 MONDAY TO FRIDAY
A77: Area 3 | B77: Security Officer | D77: 1 | E77: 3 | H77: 1
B78: 06:00 TO 18:00 SATURDAY AND SUNDAY/PUBLIC HOLIDAY
B79: Security Officer | D79: 0 | E79: 0
B80: 18:00 TO 06:00 MONDAY TO SUNDAY
B81: Security Officer | D81: 1 | E81: 1
B82: Handheld Metal Detector(s) | G82: 3
A84: 9.1.10 | B84: ERMELO
B85: 06:00 TO 18:00 MONDAY TO FRIDAY
A86: Area 3 | B86: Security Officer | D86: 1 | E86: 3 | H86: 1
B87: 06:00 TO 18:00 SATURDAY AND SUNDAY/PUBLIC HOLIDAY
B88: Security Officer | D88: 0 | E88: 0
B89: 18:00 TO 06:00 MONDAY TO SUNDAY
B90: Security Officer | D90: 1 | E90: 1
B91: Handheld Metal Detector(s) | G91: 3
A93: 9.1.11 | B93: EVANDER
B94: 06:00 TO 18:00 MONDAY TO FRIDAY
A95: Area 3 | B95: Security Officer | D95: 1 | E95: 3 | H95: 1
B96: 06:00 TO 18:00 SATURDAY AND SUNDAY/PUBLIC HOLIDAY
B97: Security Officer | D97: 0 | E97: 0
B98: 18:00 TO 06:00 MONDAY TO SUNDAY
B99: Security Officer | D99: 1 | E99: 1
B100: Handheld Metal Detector(s) | G100: 3
A102: 9.1.12 | B102: GRASKOP
B103: 06:00 TO 18:00 MONDAY TO FRIDAY
A104: Area 3 | B104: Security Officer | D104: 1 | E104: 2
B105: 06:00 TO 18:00 SATURDAY AND SUNDAY/PUBLIC HOLIDAY
B106: Security Officer | D106: 0 | E106: 0
B107: 18:00 TO 06:00 MONDAY TO SUNDAY
B108: Security Officer | D108: 1 | E108: 1
B109: Handheld Metal Detector(s) | G109: 3
A111: 9.1.13 | B111: HENDRINA
B112: 06:00 TO 18:00 MONDAY TO FRIDAY
A113: Area 3 | B113: Security Officer | D113: 1 | E113: 2
B114: 06:00 TO 18:00 SATURDAY AND SUNDAY/PUBLIC HOLIDAY
B115: Security Officer | D115: 0 | E115: 0
B116: 18:00 TO 06:00 MONDAY TO SUNDAY
B117: Security Officer | D117: 1 | E117: 1
B118: Handheld Metal Detector(s) | G118: 3
A120: 9.1.14 | B120: KRIEL/ GANALA
B121: 06:00 TO 18:00 MONDAY TO FRIDAY
A122: Area 3 | B122: Security Officer | D122: 1 | E122: 3
B123: 06:00 TO 18:00 SATURDAY AND SUNDAY/PUBLIC HOLIDAY
B124: Security Officer | D124: 0 | E124: 0
B125: 18:00 TO 06:00 MONDAY TO SUNDAY
B126: Security Officer | D126: 1 | E126: 1
B127: Handheld Metal Detector(s) | G127: 3
A129: 9.1.15 | B129: KWAMHLANGA
B130: 06:00 TO 18:00 MONDAY TO FRIDAY
A131: Area 3 | B131: Security Officer | D131: 1 | E131: 3 | H131: 1
B132: 06:00 TO 18:00 SATURDAY AND SUNDAY/PUBLIC HOLIDAY
B133: Security Officer | D133: 0 | E133: 0
B134: 18:00 TO 06:00 MONDAY TO SUNDAY
B135: Security Officer | D135: 1 | E135: 1
B136: Handheld Metal Detector(s) | G136: 3
A138: 9.1.16 | B138: MASHISHING (LYDENBURG)
B139: 06:00 TO 18:00 MONDAY TO FRIDAY
A140: Area 3 | B140: Security Officer | D140: 1 | E140: 3
B141: 06:00 TO 18:00 SATURDAY AND SUNDAY/PUBLIC HOLIDAY
B142: Security Officer | D142: 0 | E142: 0
B143: 18:00 TO 06:00 MONDAY TO SUNDAY
B144: Security Officer | D144: 1 | E144: 1
B145: Handheld Metal Detector(s) | G145: 3
A147: 9.1.17 | B147: MBIBANA
B148: 06:00 TO 18:00 MONDAY TO FRIDAY
A149: Area 3 | B149: Security Officer | D149: 1 | E149: 3
B150: 06:00 TO 18:00 SATURDAY AND SUNDAY/PUBLIC HOLIDAY
B151: Security Officer | D151: 0 | E151: 0
B152: 18:00 TO 06:00 MONDAY TO SUNDAY
B153: Security Officer | D153: 1 | E153: 1
B154: Handheld Metal Detector(s) | G154: 3
A156: 9.1.18 | B156: MDUTJANA
B157: 06:00 TO 18:00 MONDAY TO FRIDAY
A158: Area 3 | B158: Security Officer | D158: 1 | E158: 3
B159: 06:00 TO 18:00 SATURDAY AND SUNDAY/PUBLIC HOLIDAY
B160: Security Officer | D160: 0 | E160: 0
B161: 18:00 TO 06:00 MONDAY TO SUNDAY
B162: Security Officer | D162: 1 | E162: 1
B163: Handheld Metal Detector(s) | G163: 3
A165: 9.1.19 | B165: MIDDELBURG
B166: 06:00 TO 18:00 MONDAY TO FRIDAY
A167: Area 3 | B167: Security Officer | D167: 1 | E167: 4
B168: 06:00 TO 18:00 SATURDAY AND SUNDAY/PUBLIC HOLIDAY
B169: Security Officer | D169: 0 | E169: 0
B170: 18:00 TO 06:00 MONDAY TO SUNDAY
B171: Security Officer | D171: 1 | E171: 1
B172: Handheld Metal Detector(s) | G172: 3
A174: 9.1.20 | B174: MKOBOLA
B175: 06:00 TO 18:00 MONDAY TO FRIDAY
A176: Area 3 | B176: Security Officer | D176: 1 | E176: 3
B177: 06:00 TO 18:00 SATURDAY AND SUNDAY/PUBLIC HOLIDAY
B178: Security Officer | D178: 0 | E178: 0
B179: 18:00 TO 06:00 MONDAY TO SUNDAY
B180: Security Officer | D180: 1 | E180: 1
B181: Handheld Metal Detector(s) | G181: 3
A183: 9.1.21 | B183: MORGENZON
B184: 06:00 TO 18:00 MONDAY TO FRIDAY
A185: Area 3 | B185: Security Officer | D185: 1 | E185: 2
B186: 06:00 TO 18:00 SATURDAY AND SUNDAY/PUBLIC HOLIDAY
B187: Security Officer | D187: 0 | E187: 0
B188: 18:00 TO 06:00 MONDAY TO SUNDAY
B189: Security Officer | D189: 1 | E189: 1
B190: Handheld Metal Detector(s) | G190: 3
A192: 9.1.22 | B192: PIET RETIEF
B193: 06:00 TO 18:00 MONDAY TO FRIDAY
A194: Area 3 | B194: Security Officer | D194: 1 | E194: 2 | H194: 2
B195: 06:00 TO 18:00 SATURDAY AND SUNDAY/PUBLIC HOLIDAY
B196: Security Officer | D196: 0 | E196: 0
B197: 18:00 TO 06:00 MONDAY TO SUNDAY
B198: Security Officer | D198: 1 | E198: 1
B199: Handheld Metal Detector(s) | G199: 4
A201: 9.1.23 | B201: SABIE
B202: 06:00 TO 18:00 MONDAY TO FRIDAY
A203: Area 3 | B203: Security Officer | D203: 1 | E203: 2
B204: 06:00 TO 18:00 SATURDAY AND SUNDAY/PUBLIC HOLIDAY
B205: Security Officer | D205: 0 | E205: 0
B206: 18:00 TO 06:00 MONDAY TO SUNDAY
B207: Security Officer | D207: 1 | E207: 1
B208: Handheld Metal Detector(s) | G208: 3
A210: 9.1.24 | B210: SECUNDA
B211: 06:00 TO 18:00 MONDAY TO FRIDAY
A212: Area 3 | B212: Security Officer | D212: 1 | E212: 3
B213: 06:00 TO 18:00 SATURDAY AND SUNDAY/PUBLIC HOLIDAY
B214: Security Officer | D214: 1 | E214: 1
B215: 18:00 TO 06:00 MONDAY TO SUNDAY
B216: Security Officer | D216: 1 | E216: 1
B217: Handheld Metal Detector(s) | G217: 3
A219: 9.1.25 | B219: STANDERTON
B220: 06:00 TO 18:00 MONDAY TO FRIDAY
A221: Area 3 | B221: Security Officer | D221: 1 | E221: 3
B222: 06:00 TO 18:00 SATURDAY AND SUNDAY/PUBLIC HOLIDAY
B223: Security Officer | D223: 0 | E223: 0
B224: 18:00 TO 06:00 MONDAY TO SUNDAY
... 276 more rows

Sheet Sheet8

Sheet Sheet9
